Workbook

Sheet Умная Т (hidden)
C1: Калужская область по состоянию на 01.12.2022 г. | D1: =SUM(Таблица1[Оплачено случаев]) -> 70261 | F1: =SUM(Таблица1[План ДВН, чел.]) -> 54859 | I1: Выполнение плана, % | J1: =ROUND(D1/F1,3) -> 1.281 | P1: =(K24+P24+U24+Z24+AE24+AJ24+AO24+AT24+AY24+BD24+BI24+BN24)/(J24+O24+Y24+T24+AD24+AI24+AN24+AS24+AX24+BC24+BH24+BM24)*1000 -> 1305.14835
C2: Средний тариф ДВН | D2: =P1 -> 1305.14835 | K2: ФАКТ | L2: ПЛАН | O2: ФАКТ | Q2: ПЛАН | T2: ФАКТ | V2: ПЛАН | Y2: ФАКТ | AA2: ПЛАН | AD2: ФАКТ | AF2: ПЛАН | AI2: ФАКТ | AK2: ПЛАН | AN2: ФАКТ | AP2: ПЛАН | AS2: ФАКТ | AU2: ПЛАН | AX2: ФАКТ | AZ2: ПЛАН | BC2: ФАКТ | BE2: ПЛАН | BH2: ФАКТ | BJ2: ПЛАН | BM2: ФАКТ | BO2: ПЛАН
A3: Месяц | B3: Вид | C3: Наименование медицинской организации | D3: Оплачено случаев | E3: Оплачено сумма, тыс.руб. | F3: План ДВН, чел. | G3: Отклонение | H3: % выполнения | J3: 1мес | K3: январь | L3: январь | M3: 2 мес | O3: Февраль | Q3: Февраль | R3: 3 мес | T3: Март | V3: Март | W3: 4 мес | Y3: Апрель | AA3: Апрель | AB3: 5 мес | AD3: Май | AF3: Май | AG3: 6 мес | AI3: Июнь | AK3: Июнь | AL3: 7 мес | AN3: Июль | AP3: Июль | AQ3: 8 мес | AS3: Август | AU3: Август | AV3: 9 мес | AX3: Сентябрь | AZ3: Сентябрь | BA3: 10 мес | BC3: Октябрь | BE3: Октябрь | BF3: 11 мес | BH3: Ноябрь | BJ3: Ноябрь | BK3: 12 мес | BM3: Декабрь | BO3: Декабрь
A4: Январь | B4: ДВН | C4: ЦМБ № 1 | D4: =J4 -> 48 | E4: =K4 -> 68.32103 | F4: =L4 -> 164 | G4: =Таблица1[[#This Row],[Оплачено случаев]]-Таблица1[[#This Row],[План ДВН, чел.]] -> -116 | H4: =ROUND(Таблица1[[#This Row],[Оплачено случаев]]/Таблица1[[#This Row],[План ДВН, чел.]]*100,1) -> 29.3 | J4: 48 | K4: 68.32103 | L4: 164 | M4: =J4+O4 -> 183 | N4: =K4+P4 -> 277.77083 | O4: 135 | P4: 209.4498 | Q4: 164 | R4: =M4+T4 -> 330 | S4: =N4+U4 -> 490.56325 | T4: 147 | U4: 212.79242 | V4: 164 | W4: =R4+Y4 -> 398 | X4: =S4+Z4 -> 613.1971 | Y4: 68 | Z4: 122.63385 | AA4: 164 | AB4: =W4+AD4 -> 477 | AC4: =X4+AE4 -> 704.23663 | AD4: 79 | AE4: 91.03953 | AF4: 164 | AG4: =AB4+AI4 -> 599 | AH4: =AC4+AJ4 -> 914.56282 | AI4: 122 | AJ4: 210.32619 | AK4: 164 | AL4: =AG4+AN4 -> 709 | AM4: =AH4+AO4 -> 1062.54085 | AN4: 110 | AO4: 147.97803 | AP4: 164 | AQ4: =AL4+AS4 -> 904 | AR4: =AM4+AT4 -> 1279.13799 | AS4: 195 | AT4: 216.59714 | AU4: 164 | AV4: =AQ4+AX4 -> 1247 | AW4: =AR4+AY4 -> 1665.73425 | AX4: 343 | AY4: 386.59626 | AZ4: 164 | BA4: =AV4+BC4 -> 1614 | BB4: =AW4+BD4 -> 2207.15206 | BC4: 367 | BD4: 541.41781 | BE4: 164 | BF4: =BA4+BH4 -> 1982 | BG4: =BB4+BI4 -> 2767.13201 | BH4: 368 | BI4: 559.97995 | BJ4: 164 | BK4: =BM4+BF4 -> 2438 | BL4: =BG4+BN4 -> 3318.29447 | BM4: 456 | BN4: 551.16246 | BO4: 161 | BP4: =BO4+BJ4+BE4+AZ4+AU4+AP4+AK4+AF4+AA4+V4+Q4+L4 -> 1965 | BQ4: 2438 | BR4: 3318.29447 | BS4: =BQ4-BF4 -> 456 | BT4: =BR4-BG4 -> 551.16246
A5: Январь | B5: ДВН | C5: ЦМБ № 2 | D5: =J5 -> 32 | E5: =K5 -> 34.016 | F5: =L5 -> 135 | G5: =Таблица1[[#This Row],[Оплачено случаев]]-Таблица1[[#This Row],[План ДВН, чел.]] -> -103 | H5: =ROUND(Таблица1[[#This Row],[Оплачено случаев]]/Таблица1[[#This Row],[План ДВН, чел.]]*100,1) -> 23.7 | J5: 32 | K5: 34.016 | L5: 135 | M5: =J5+O5 -> 47 | N5: 49.961 | O5: 15 | P5: 15.945 | Q5: 135 | R5: =M5+T5 -> 67 | S5: =N5+U5 -> 71.221 | T5: 20 | U5: 21.26 | V5: 135 | W5: =R5+Y5 -> 80 | X5: =S5+Z5 -> 85.031 | Y5: 13 | Z5: 13.81 | AA5: 135 | AB5: =W5+AD5 -> 95 | AC5: =X5+AE5 -> 100.976 | AD5: 15 | AE5: 15.945 | AF5: 135 | AG5: =AB5+AI5 -> 162 | AH5: =AC5+AJ5 -> 172.197 | AI5: 67 | AJ5: 71.221 | AK5: 135 | AL5: =AG5+AN5 -> 201 | AM5: =AH5+AO5 -> 213.654 | AN5: 39 | AO5: 41.457 | AP5: 135 | AQ5: =AL5+AS5 -> 210 | AR5: =AM5+AT5 -> 223.1147 | AS5: 9 | AT5: 9.4607 | AU5: 135 | AV5: =AQ5+AX5 -> 236 | AW5: =AR5+AY5 -> 250.7527 | AX5: 26 | AY5: 27.638 | AZ5: 135 | BA5: =AV5+BC5 -> 524 | BB5: =AW5+BD5 -> 551.40422 | BC5: 288 | BD5: 300.65152 | BE5: 135 | BF5: =BA5+BH5 -> 532 | BG5: =BB5+BI5 -> 559.90822 | BH5: 8 | BI5: 8.504 | BJ5: 135 | BK5: =BM5+BF5 -> 846 | BL5: =BG5+BN5 -> 608.10937 | BM5: 314 | BN5: 48.20115 | BO5: 139 | BP5: =BO5+BJ5+BE5+AZ5+AU5+AP5+AK5+AF5+AA5+V5+Q5+L5 -> 1624 | BQ5: 846 | BR5: 608.10937 | BS5: =BQ5-BF5 -> 314 | BT5: =BR5-BG5 -> 48.20115
A6: Январь | B6: ДВН | C6: ЦМБ № 3 | D6: 38 | E6: 40.394 | F6: 44 | G6: =Таблица1[[#This Row],[Оплачено случаев]]-Таблица1[[#This Row],[План ДВН, чел.]] -> -6 | H6: =ROUND(Таблица1[[#This Row],[Оплачено случаев]]/Таблица1[[#This Row],[План ДВН, чел.]]*100,1) -> 86.4 | J6: 38 | K6: 40.394 | L6: 44 | M6: 82 | N6: 87.166 | O6: 44 | P6: 46.772 | Q6: 44 | R6: 93 | S6: 104.34059 | T6: 11 | U6: 17.17459 | V6: 44 | W6: 107 | X6: 127.17234 | Y6: 14 | Z6: 22.83175 | AA6: 44 | AB6: 119 | AC6: 144.4738 | AD6: 12 | AE6: 17.30146 | AF6: 44 | AG6: 179 | AH6: 228.50693 | AI6: 60 | AJ6: 84.03313 | AK6: 44 | AL6: 218 | AM6: 271.05649 | AN6: 39 | AO6: 42.54956 | AP6: 44 | AQ6: 246 | AR6: 312.59972 | AS6: 28 | AT6: 41.54323 | AU6: 44 | AV6: 266 | AW6: 343.83813 | AX6: 20 | AY6: 31.23841 | AZ6: 44 | BA6: 283 | BB6: 385.12102 | BC6: 17 | BD6: 41.28289 | BE6: 44 | BF6: 297 | BG6: 414.3226 | BH6: 14 | BI6: 29.20158 | BJ6: 44 | BK6: 313 | BL6: 451.45324 | BM6: 16 | BN6: 37.13064 | BO6: 47 | BP6: 531 | BQ6: 313 | BR6: 451.45324 | BS6: 16 | BT6: 37.13064
A7: Январь | B7: ДВН | C7: ЦМБ № 4 | D7: 48 | E7: 19.4092 | F7: 26 | G7: =Таблица1[[#This Row],[Оплачено случаев]]-Таблица1[[#This Row],[План ДВН, чел.]] -> 22 | H7: =ROUND(Таблица1[[#This Row],[Оплачено случаев]]/Таблица1[[#This Row],[План ДВН, чел.]]*100,1) -> 184.6 | J7: 48 | K7: 19.4092 | L7: 26 | M7: 53 | N7: 24.7242 | O7: 5 | P7: 5.315 | Q7: 26 | R7: 55 | S7: 26.8502 | T7: 2 | U7: 2.126 | V7: 26 | W7: 57 | X7: 28.9762 | Y7: 2 | Z7: 2.126 | AA7: 26 | AB7: 58 | AC7: 30.0392 | AD7: 1 | AE7: 1.063 | AF7: 26 | AG7: 58 | AH7: 30.0392 | AK7: 26 | AL7: 59 | AM7: 31.1022 | AN7: 1 | AO7: 1.063 | AP7: 26 | AQ7: 59 | AR7: 31.1022 | AT7: 0 | AU7: 26 | AV7: 59 | AW7: 31.1022 | AY7: 0 | AZ7: 26 | BA7: 59 | BB7: 31.1022 | BD7: 0 | BE7: 26 | BF7: 60 | BG7: 32.0589 | BH7: 1 | BI7: 0.9567 | BJ7: 26 | BK7: 60 | BL7: 32.0589 | BM7: 0 | BN7: 0 | BO7: 25 | BP7: 311 | BQ7: 60 | BR7: 32.0589 | BS7: 0 | BT7: 0
A8: Январь | B8: ДВН | C8: ЦМБ № 5 | D8: 239 | E8: 252.47626 | F8: 136 | G8: =Таблица1[[#This Row],[Оплачено случаев]]-Таблица1[[#This Row],[План ДВН, чел.]] -> 103 | H8: =ROUND(Таблица1[[#This Row],[Оплачено случаев]]/Таблица1[[#This Row],[План ДВН, чел.]]*100,1) -> 175.7 | J8: 239 | K8: 252.47626 | L8: 136 | M8: 351 | N8: 352.86241 | O8: 112 | P8: 100.38615 | Q8: 136 | R8: 521 | S8: 485.82455 | T8: 170 | U8: 132.96214 | V8: 136 | W8: 698 | X8: 654.16112 | Y8: 177 | Z8: 168.33657 | AA8: 136 | AB8: 837 | AC8: 789.77301 | AD8: 139 | AE8: 135.61189 | AF8: 136 | AG8: 914 | AH8: 855.87874 | AI8: 77 | AJ8: 66.10573 | AK8: 136 | AL8: 1054 | AM8: 980.74154 | AN8: 140 | AO8: 124.8628 | AP8: 136 | AQ8: 1211 | AR8: 1127.66236 | AS8: 157 | AT8: 146.92082 | AU8: 136 | AV8: 1346 | AW8: 1271.07431 | AX8: 135 | AY8: 143.41195 | AZ8: 136 | BA8: 1645 | BB8: 1688.02844 | BC8: 299 | BD8: 416.95413 | BE8: 136 | BF8: 1981 | BG8: 2146.24559 | BH8: 336 | BI8: 458.21715 | BJ8: 136 | BK8: 2194 | BL8: 2443.25087 | BM8: 213 | BN8: 297.00528 | BO8: 137 | BP8: 1633 | BQ8: 2194 | BR8: 2443.25087 | BS8: 213 | BT8: 297.00528
A9: Январь | B9: ДВН | C9: ЦМБ № 6 | D9: 139 | E9: 145.38589 | F9: 319 | G9: =Таблица1[[#This Row],[Оплачено случаев]]-Таблица1[[#This Row],[План ДВН, чел.]] -> -180 | H9: =ROUND(Таблица1[[#This Row],[Оплачено случаев]]/Таблица1[[#This Row],[План ДВН, чел.]]*100,1) -> 43.6 | J9: 139 | K9: 145.38589 | L9: 319 | M9: 394 | N9: 416.45089 | O9: 255 | P9: 271.065 | Q9: 319 | R9: 670 | S9: 709.83889 | T9: 276 | U9: 293.388 | V9: 319 | W9: 885 | X9: 938.38389 | Y9: 215 | Z9: 228.545 | AA9: 319 | AB9: 1070 | AC9: 1135.03889 | AD9: 185 | AE9: 196.655 | AF9: 319 | AG9: 1426 | AH9: 1583.37276 | AI9: 356 | AJ9: 448.33387 | AK9: 319 | AL9: 1725 | AM9: 1901.20976 | AN9: 299 | AO9: 317.837 | AP9: 319 | AQ9: 2009 | AR9: 2209.78861 | AS9: 284 | AT9: 308.57885 | AU9: 319 | AV9: 2493 | AW9: 2881.91085 | AX9: 484 | AY9: 672.12224 | AZ9: 319 | BA9: 3197 | BB9: 3881.63273 | BC9: 704 | BD9: 999.72188 | BE9: 319 | BF9: 3770 | BG9: 4644.94063 | BH9: 573 | BI9: 763.3079 | BJ9: 319 | BK9: 3993 | BL9: 5025.71461 | BM9: 223 | BN9: 380.77398 | BO9: 316 | BP9: 3825 | BQ9: 3993 | BR9: 5025.71461 | BS9: 223 | BT9: 380.77398
A10: Январь | B10: ДВН | C10: КГБ № 5 | D10: 448 | E10: 484.37447 | F10: 1163 | G10: =Таблица1[[#This Row],[Оплачено случаев]]-Таблица1[[#This Row],[План ДВН, чел.]] -> -715 | H10: =ROUND(Таблица1[[#This Row],[Оплачено случаев]]/Таблица1[[#This Row],[План ДВН, чел.]]*100,1) -> 38.5 | J10: 448 | K10: 484.37447 | L10: 1163 | M10: 1308 | N10: 1390.57447 | O10: 860 | P10: 906.2 | Q10: 1163 | R10: 2079 | S10: 2213.77447 | T10: 771 | U10: 823.2 | V10: 1163 | W10: 2883 | X10: 3081.53762 | Y10: 804 | Z10: 867.76315 | AA10: 1163 | AB10: 3643 | AC10: 3982.69972 | AD10: 760 | AE10: 901.1621 | AF10: 1163 | AG10: 4489 | AH10: 5004.12782 | AI10: 846 | AJ10: 1021.4281 | AK10: 1163 | AL10: 5107 | AM10: 5749.7579 | AN10: 618 | AO10: 745.63008 | AP10: 1163 | AQ10: 6054 | AR10: 6809.65973 | AS10: 947 | AT10: 1059.90183 | AU10: 1163 | AV10: 13660 | AW10: 21812.97893 | AX10: 7606 | AY10: 15003.3192 | AZ10: 1163 | BA10: 13801 | BB10: 21962.86193 | BC10: 141 | BD10: 149.883 | BE10: 1163 | BF10: 17243 | BG10: 26608.12519 | BH10: 3442 | BI10: 4645.26326 | BJ10: 1163 | BK10: 18833 | BL10: 29076.4396 | BM10: 1590 | BN10: 2468.31441 | BO10: 1168 | BP10: 13961 | BQ10: 18833 | BR10: 29076.4396 | BS10: 1590 | BT10: 2468.31441
A11: Январь | B11: ДВН | C11: КГКБ № 4 | D11: 480 | E11: 478.00343 | F11: 679 | G11: =Таблица1[[#This Row],[Оплачено случаев]]-Таблица1[[#This Row],[План ДВН, чел.]] -> -199 | H11: =ROUND(Таблица1[[#This Row],[Оплачено случаев]]/Таблица1[[#This Row],[План ДВН, чел.]]*100,1) -> 70.7 | J11: 480 | K11: 478.00343 | L11: 679 | M11: 1349 | N11: 1335.20343 | O11: 869 | P11: 857.2 | Q11: 679 | R11: 2454 | S11: 2352.00343 | T11: 1105 | U11: 1016.8 | V11: 679 | W11: 3408 | X11: 3276.123 | Y11: 954 | Z11: 924.11957 | AA11: 679 | AB11: 4526 | AC11: 4372.92715 | AD11: 1118 | AE11: 1096.80415 | AF11: 679 | AG11: 5582 | AH11: 5399.82736 | AI11: 1056 | AJ11: 1026.90021 | AK11: 679 | AL11: 6776 | AM11: 6475.9719 | AN11: 1194 | AO11: 1076.14454 | AP11: 679 | AQ11: 8159 | AR11: 7778.74588 | AS11: 1383 | AT11: 1302.77398 | AU11: 679 | AV11: 10001 | AW11: 9459.45083 | AX11: 1842 | AY11: 1680.70495 | AZ11: 679 | BA11: 11780 | BB11: 11086.74104 | BC11: 1779 | BD11: 1627.29021 | BE11: 679 | BF11: 13556 | BG11: 12504.42154 | BH11: 1776 | BI11: 1417.6805 | BJ11: 679 | BK11: 14102 | BL11: 13056.02736 | BM11: 546 | BN11: 551.60582 | BO11: 683 | BP11: 8152 | BQ11: 14102 | BR11: 13056.02736 | BS11: 546 | BT11: 551.60582
A12: Январь | B12: ДВН | C12: Городская поликлиника | D12: 228 | E12: 196.64007 | F12: 260 | G12: =Таблица1[[#This Row],[Оплачено случаев]]-Таблица1[[#This Row],[План ДВН, чел.]] -> -32 | H12: =ROUND(Таблица1[[#This Row],[Оплачено случаев]]/Таблица1[[#This Row],[План ДВН, чел.]]*100,1) -> 87.7 | J12: 228 | K12: 196.64007 | L12: 260 | M12: 524 | N12: 558.04007 | O12: 296 | P12: 361.4 | Q12: 260 | R12: 772 | S12: 906.21338 | T12: 248 | U12: 348.17331 | V12: 260 | W12: 977 | X12: 1201.39477 | Y12: 205 | Z12: 295.18139 | AA12: 260 | AB12: 1116 | AC12: 1396.431 | AD12: 139 | AE12: 195.03623 | AF12: 260 | AG12: 1179 | AH12: 1487.25231 | AI12: 63 | AJ12: 90.82131 | AK12: 260 | AL12: 1274 | AM12: 1609.3057 | AN12: 95 | AO12: 122.05339 | AP12: 260 | AQ12: 1754 | AR12: 2205.9356 | AS12: 480 | AT12: 596.6299 | AU12: 260 | AV12: 2407 | AW12: 3016.64503 | AX12: 653 | AY12: 810.70943 | AZ12: 260 | BA12: 3382 | BB12: 4226.37453 | BC12: 975 | BD12: 1209.7295 | BE12: 260 | BF12: 4170 | BG12: 5245.44552 | BH12: 788 | BI12: 1019.07099 | BJ12: 260 | BK12: 4744 | BL12: 5978.76703 | BM12: 574 | BN12: 733.32151 | BO12: 262 | BP12: 3122 | BQ12: 4744 | BR12: 5978.76703 | BS12: 574 | BT12: 733.32151
A13: Январь | B13: ДВН | C13: МСЧ № 1 г. Калуги | D13: 53 | E13: 56.339 | F13: 21 | G13: =Таблица1[[#This Row],[Оплачено случаев]]-Таблица1[[#This Row],[План ДВН, чел.]] -> 32 | H13: =ROUND(Таблица1[[#This Row],[Оплачено случаев]]/Таблица1[[#This Row],[План ДВН, чел.]]*100,1) -> 252.4 | J13: 53 | K13: 56.339 | L13: 21 | M13: 61 | N13: 64.15486 | O13: 8 | P13: 7.81586 | Q13: 21 | R13: 62 | S13: 65.21786 | T13: 1 | U13: 1.063 | V13: 21 | W13: 68 | X13: 74.08946 | Y13: 6 | Z13: 8.8716 | AA13: 21 | AB13: 69 | AC13: 75.15246 | AD13: 1 | AE13: 1.063 | AF13: 21 | AG13: 70 | AH13: 76.83951 | AI13: 1 | AJ13: 1.68705 | AK13: 21 | AL13: 73 | AM13: 81.10641 | AN13: 3 | AO13: 4.2669 | AP13: 21 | AQ13: 75 | AR13: 84.65762 | AS13: 2 | AT13: 3.55121 | AU13: 21 | AV13: 87 | AW13: 107.58427 | AX13: 12 | AY13: 22.92665 | AZ13: 21 | BA13: 90 | BB13: 110.77327 | BC13: 3 | BD13: 3.189 | BE13: 21 | BF13: 94 | BG13: 118.08586 | BH13: 4 | BI13: 7.31259 | BJ13: 21 | BK13: 155 | BL13: 237.82027 | BM13: 61 | BN13: 119.73441 | BO13: 21 | BP13: 252 | BQ13: 155 | BR13: 237.82027 | BS13: 61 | BT13: 119.73441
A14: Январь | B14: ДВН | C14: МСЧ № 2 г. Калуги | D14: 10 | E14: 10.63 | F14: 26 | G14: =Таблица1[[#This Row],[Оплачено случаев]]-Таблица1[[#This Row],[План ДВН, чел.]] -> -16 | H14: =ROUND(Таблица1[[#This Row],[Оплачено случаев]]/Таблица1[[#This Row],[План ДВН, чел.]]*100,1) -> 38.5 | J14: 10 | K14: 10.63 | L14: 26 | M14: 21 | N14: 22.323 | O14: 11 | P14: 11.693 | Q14: 26 | R14: 60 | S14: 63.78 | T14: 39 | U14: 41.457 | V14: 26 | W14: 67 | X14: 71.221 | Y14: 7 | Z14: 7.441 | AA14: 26 | AB14: 69 | AC14: 73.347 | AD14: 2 | AE14: 2.126 | AF14: 26 | AG14: 71 | AH14: 75.473 | AI14: 2 | AJ14: 2.126 | AK14: 26 | AL14: 81 | AM14: 86.103 | AN14: 10 | AO14: 10.63 | AP14: 26 | AQ14: 81 | AR14: 86.103 | AT14: 0 | AU14: 26 | AV14: 81 | AW14: 86.103 | AY14: 0 | AZ14: 26 | BA14: 81 | BB14: 86.103 | BD14: 0 | BE14: 26 | BF14: 81 | BG14: 86.103 | BI14: 0 | BJ14: 26 | BK14: 86 | BL14: 89.10085 | BM14: 5 | BN14: 2.99785 | BO14: 29 | BP14: 315 | BQ14: 86 | BR14: 89.10085 | BS14: 5 | BT14: 2.99785
A15: Январь | B15: ДВН | C15: МСЧ МВД | D15: 0 | E15: 0 | F15: 1 | G15: =Таблица1[[#This Row],[Оплачено случаев]]-Таблица1[[#This Row],[План ДВН, чел.]] -> -1 | H15: =ROUND(Таблица1[[#This Row],[Оплачено случаев]]/Таблица1[[#This Row],[План ДВН, чел.]]*100,1) -> 0 | J15: 0 | K15: 0 | L15: 1 | M15: 0 | N15: 0 | O15: 0 | Q15: 1 | R15: 0 | S15: 0 | V15: 1 | W15: 0 | X15: 0 | Z15: 0 | AA15: 1 | AB15: 0 | AC15: 0 | AE15: 0 | AG15: 0 | AH15: 0 | AJ15: 0 | AL15: 0 | AM15: 0 | AO15: 0 | AQ15: 0 | AR15: 0 | AT15: 0 | AV15: 0 | AW15: 0 | AY15: 0 | BA15: 0 | BB15: 0 | BD15: 0 | BF15: 0 | BG15: 0 | BI15: 0 | BK15: 0 | BL15: 0 | BM15: 0 | BN15: 0 | BP15: 4 | BS15: 0 | BT15: 0
A16: Январь | B16: ДВН | C16: ЧУЗ "Больница "РЖД - Медицина" | D16: 44 | E16: 46.772 | F16: 57 | G16: =Таблица1[[#This Row],[Оплачено случаев]]-Таблица1[[#This Row],[План ДВН, чел.]] -> -13 | H16: =ROUND(Таблица1[[#This Row],[Оплачено случаев]]/Таблица1[[#This Row],[План ДВН, чел.]]*100,1) -> 77.2 | J16: 44 | K16: 46.772 | L16: 57 | M16: 119 | N16: 160.12702 | O16: 75 | P16: 113.35502 | Q16: 57 | R16: 196 | S16: 278.55415 | T16: 77 | U16: 118.42713 | V16: 57 | W16: 261 | X16: 392.93267 | Y16: 65 | Z16: 114.37852 | AA16: 57 | AB16: 302 | AC16: 471.03243 | AD16: 41 | AE16: 78.09976 | AF16: 57 | AG16: 332 | AH16: 534.66779 | AI16: 30 | AJ16: 63.63536 | AK16: 57 | AL16: 344 | AM16: 558.10239 | AN16: 12 | AO16: 23.4346 | AP16: 57 | AQ16: 366 | AR16: 585.30363 | AS16: 22 | AT16: 27.20124 | AU16: 57 | AV16: 395 | AW16: 637.93648 | AX16: 29 | AY16: 52.63285 | AZ16: 57 | BA16: 399 | BB16: 644.03702 | BC16: 4 | BD16: 6.10054 | BE16: 57 | BF16: 452 | BG16: 776.32051 | BH16: 53 | BI16: 132.28349 | BJ16: 57 | BK16: 489 | BL16: 861.96283 | BM16: 37 | BN16: 85.64232 | BO16: 51 | BP16: 678 | BQ16: 489 | BR16: 861.96283 | BS16: 37 | BT16: 85.64232
A17: Январь | B17: ДВН | C17: КБ № 8 ФМБА | D17: 124 | E17: 131.812 | F17: 350 | G17: =Таблица1[[#This Row],[Оплачено случаев]]-Таблица1[[#This Row],[План ДВН, чел.]] -> -226 | H17: =ROUND(Таблица1[[#This Row],[Оплачено случаев]]/Таблица1[[#This Row],[План ДВН, чел.]]*100,1) -> 35.4 | J17: 124 | K17: 131.812 | L17: 350 | M17: 199 | N17: 211.537 | O17: 75 | P17: 79.725 | Q17: 350 | R17: 425 | S17: 451.775 | T17: 226 | U17: 240.238 | V17: 350 | W17: 625 | X17: 664.375 | Y17: 200 | Z17: 212.6 | AA17: 350 | AB17: 863 | AC17: 917.369 | AD17: 238 | AE17: 252.994 | AF17: 350 | AG17: 1210 | AH17: 1286.23 | AI17: 347 | AJ17: 368.861 | AK17: 350 | AL17: 1481 | AM17: 1574.303 | AN17: 271 | AO17: 288.073 | AP17: 350 | AQ17: 2032 | AR17: 2160.016 | AS17: 551 | AT17: 585.713 | AU17: 350 | AV17: 2652 | AW17: 3077.6611 | AX17: 620 | AY17: 917.6451 | AZ17: 350 | BA17: 3080 | BB17: 3665.79139 | BC17: 428 | BD17: 588.13029 | BE17: 350 | BF17: 3498 | BG17: 4295.45091 | BH17: 418 | BI17: 629.65952 | BJ17: 350 | BK17: 4170 | BL17: 5009.78691 | BM17: 672 | BN17: 714.336 | BO17: 353 | BP17: 4203 | BQ17: 4170 | BR17: 5009.78691 | BS17: 672 | BT17: 714.336
A18: Январь | B18: ДВН | C18: ЦРБ Бабынинского района | D18: 111 | E18: 117.993 | F18: 224 | G18: =Таблица1[[#This Row],[Оплачено случаев]]-Таблица1[[#This Row],[План ДВН, чел.]] -> -113 | H18: =ROUND(Таблица1[[#This Row],[Оплачено случаев]]/Таблица1[[#This Row],[План ДВН, чел.]]*100,1) -> 49.6 | J18: 111 | K18: 117.993 | L18: 224 | M18: 140 | N18: 146.75558 | O18: 29 | P18: 28.76258 | Q18: 224 | R18: 152 | S18: 158.55488 | T18: 12 | U18: 11.7993 | V18: 224 | W18: 164 | X18: 175.68873 | Y18: 12 | Z18: 17.13385 | AA18: 224 | AB18: 172 | AC18: 184.71048 | AD18: 8 | AE18: 9.02175 | AF18: 224 | AG18: 206 | AH18: 233.80535 | AI18: 34 | AJ18: 49.09487 | AK18: 224 | AL18: 382 | AM18: 561.02366 | AN18: 176 | AO18: 327.21831 | AP18: 224 | AQ18: 490 | AR18: 743.89603 | AS18: 108 | AT18: 182.87237 | AU18: 224 | AV18: 979 | AW18: 1608.26702 | AX18: 489 | AY18: 864.37099 | AZ18: 224 | BA18: 1484 | BB18: 2487.08138 | BC18: 505 | BD18: 878.81436 | BE18: 224 | BF18: 2060 | BG18: 3480.96612 | BH18: 576 | BI18: 993.88474 | BJ18: 224 | BK18: 2568 | BL18: 4348.71327 | BM18: 508 | BN18: 867.74715 | BO18: 219 | BP18: 2683 | BQ18: 2568 | BR18: 4348.71327 | BS18: 508 | BT18: 867.74715
A19: Январь | B19: ДВН | C19: ЦРБ Боровского района | D19: 30 | E19: 31.89 | F19: 245 | G19: =Таблица1[[#This Row],[Оплачено случаев]]-Таблица1[[#This Row],[План ДВН, чел.]] -> -215 | H19: =ROUND(Таблица1[[#This Row],[Оплачено случаев]]/Таблица1[[#This Row],[План ДВН, чел.]]*100,1) -> 12.2 | J19: 30 | K19: 31.89 | L19: 245 | M19: 103 | N19: 109.489 | O19: 73 | P19: 77.599 | Q19: 245 | R19: 221 | S19: 233.58574 | T19: 118 | U19: 124.09674 | V19: 245 | W19: 1081 | X19: 1890.19337 | Y19: 860 | Z19: 1656.60763 | AA19: 245 | AB19: 1373 | AC19: 2341.18021 | AD19: 292 | AE19: 450.98684 | AF19: 245 | AG19: 1698 | AH19: 2891.10469 | AI19: 325 | AJ19: 549.92448 | AK19: 245 | AL19: 2021 | AM19: 3390.79913 | AN19: 323 | AO19: 499.69444 | AP19: 245 | AQ19: 2488 | AR19: 4052.58418 | AS19: 467 | AT19: 661.78505 | AU19: 245 | AV19: 2829 | AW19: 4532.56036 | AX19: 341 | AY19: 479.97618 | AZ19: 245 | BA19: 3141 | BB19: 5035.51175 | BC19: 312 | BD19: 502.95139 | BE19: 245 | BF19: 3578 | BG19: 5784.86165 | BH19: 437 | BI19: 749.3499 | BJ19: 245 | BK19: 4143 | BL19: 7076.66444 | BM19: 565 | BN19: 1291.80279 | BO19: 241 | BP19: 2936 | BQ19: 4143 | BR19: 7076.66444 | BS19: 565 | BT19: 1291.80279
A20: Январь | B20: ДВН | C20: ЦРБ Жуковского района | D20: 43 | E20: 45.709 | F20: 94 | G20: =Таблица1[[#This Row],[Оплачено случаев]]-Таблица1[[#This Row],[План ДВН, чел.]] -> -51 | H20: =ROUND(Таблица1[[#This Row],[Оплачено случаев]]/Таблица1[[#This Row],[План ДВН, чел.]]*100,1) -> 45.7 | J20: 43 | K20: 45.709 | L20: 94 | M20: 61 | N20: 64.843 | O20: 18 | P20: 19.134 | Q20: 94 | R20: 92 | S20: 97.843 | T20: 31 | U20: 33 | V20: 94 | W20: 135 | X20: 143.3394 | Y20: 43 | Z20: 45.4964 | AA20: 94 | AB20: 190 | AC20: 201.8044 | AD20: 55 | AE20: 58.465 | AF20: 94 | AG20: 224 | AH20: 237.9464 | AI20: 34 | AJ20: 36.142 | AK20: 94 | AL20: 275 | AM20: 292.1594 | AN20: 51 | AO20: 54.213 | AP20: 94 | AQ20: 325 | AR20: 345.3094 | AS20: 50 | AT20: 53.15 | AU20: 94 | AV20: 348 | AW20: 369.7584 | AX20: 23 | AY20: 24.449 | AZ20: 94 | BA20: 1332 | BB20: 1256.18439 | BC20: 984 | BD20: 886.42599 | BE20: 94 | BF20: 2162 | BG20: 2002.60514 | BH20: 830 | BI20: 746.42075 | BJ20: 94 | BK20: 2778 | BL20: 2555.55179 | BM20: 616 | BN20: 552.94665 | BO20: 91 | BP20: 1125 | BQ20: 2778 | BR20: 2555.55179 | BS20: 616 | BT20: 552.94665
A21: Январь | B21: ДВН | C21: ГП "Город Кременки" | D21: 274 | E21: 394.78126 | F21: 16 | G21: =Таблица1[[#This Row],[Оплачено случаев]]-Таблица1[[#This Row],[План ДВН, чел.]] -> 258 | H21: =ROUND(Таблица1[[#This Row],[Оплачено случаев]]/Таблица1[[#This Row],[План ДВН, чел.]]*100,1) -> 1712.5 | J21: 274 | K21: 394.78126 | L21: 16 | M21: 358 | N21: 541.07031 | O21: 84 | P21: 146.28905 | Q21: 16 | R21: 477 | S21: 749.86359 | T21: 119 | U21: 208.79328 | V21: 16 | W21: 527 | X21: 816.02956 | Y21: 50 | Z21: 66.16597 | AA21: 16 | AB21: 581 | AC21: 885.73764 | AD21: 54 | AE21: 69.70808 | AF21: 16 | AG21: 645 | AH21: 960.84084 | AI21: 64 | AJ21: 75.1032 | AK21: 16 | AL21: 779 | AM21: 1115.43726 | AN21: 134 | AO21: 154.59642 | AP21: 16 | AQ21: 848 | AR21: 1196.0914 | AS21: 69 | AT21: 80.65414 | AU21: 16 | AV21: 939 | AW21: 1301.01245 | AX21: 91 | AY21: 104.92105 | AZ21: 16 | BA21: 1046 | BB21: 1465.54027 | BC21: 107 | BD21: 164.52782 | BE21: 16 | BF21: 1077 | BG21: 1510.93241 | BH21: 31 | BI21: 45.39214 | BJ21: 16 | BK21: 1187 | BL21: 1692.55267 | BM21: 110 | BN21: 181.62026 | BO21: 14 | BP21: 190 | BQ21: 1187 | BR21: 1692.55267 | BS21: 110 | BT21: 181.62026
A22: Январь | B22: ДВН | C22: ЦРБ Малоярославецкого района | D22: 86 | E22: 90.72986 | F22: 517 | G22: =Таблица1[[#This Row],[Оплачено случаев]]-Таблица1[[#This Row],[План ДВН, чел.]] -> -431 | H22: =ROUND(Таблица1[[#This Row],[Оплачено случаев]]/Таблица1[[#This Row],[План ДВН, чел.]]*100,1) -> 16.6 | J22: 86 | K22: 90.72986 | L22: 517 | M22: 402 | N22: 424.57344 | O22: 316 | P22: 333.84358 | Q22: 517 | R22: 1177 | S22: 1693.57344 | T22: 775 | U22: 1269 | V22: 517 | W22: 1933 | X22: 2892.71209 | Y22: 756 | Z22: 1199.13865 | AA22: 517 | AB22: 2484 | AC22: 3706.75546 | AD22: 551 | AE22: 814.04337 | AF22: 517 | AG22: 3063 | AH22: 4551.79832 | AI22: 579 | AJ22: 845.04286 | AK22: 517 | AL22: 3565 | AM22: 5332.53262 | AN22: 502 | AO22: 780.7343 | AP22: 517 | AQ22: 3999 | AR22: 5959.36763 | AS22: 434 | AT22: 626.83501 | AU22: 517 | AV22: 4510 | AW22: 6722.1045 | AX22: 511 | AY22: 762.73687 | AZ22: 517 | BA22: 4937 | BB22: 7390.86548 | BC22: 427 | BD22: 668.76098 | BE22: 517 | BF22: 5308 | BG22: 7993.9721 | BH22: 371 | BI22: 603.10662 | BJ22: 517 | BK22: 5532 | BL22: 8405.49233 | BM22: 224 | BN22: 411.52023 | BO22: 521 | BP22: 6208 | BQ22: 5532 | BR22: 8405.49233 | BS22: 224 | BT22: 411.52023
A23: Январь | B23: ДВН | C23: ЦРБ Тарусского района | D23: 83 | E23: 87.54086 | F23: 95 | G23: =Таблица1[[#This Row],[Оплачено случаев]]-Таблица1[[#This Row],[План ДВН, чел.]] -> -12 | H23: =ROUND(Таблица1[[#This Row],[Оплачено случаев]]/Таблица1[[#This Row],[План ДВН, чел.]]*100,1) -> 87.4 | J23: 83 | K23: 87.54086 | L23: 95 | M23: 383 | N23: 259.85391 | O23: 300 | P23: 172.31305 | Q23: 95 | R23: 600 | S23: 467.47472 | T23: 217 | U23: 207.62081 | V23: 95 | W23: 734 | X23: 608.47888 | Y23: 134 | Z23: 141.00416 | AA23: 95 | AB23: 830 | AC23: 699.55358 | AD23: 96 | AE23: 91.0747 | AF23: 95 | AG23: 937 | AH23: 796.95394 | AI23: 107 | AJ23: 97.40036 | AK23: 95 | AL23: 986 | AM23: 844.96701 | AN23: 49 | AO23: 48.01307 | AP23: 95 | AQ23: 1184 | AR23: 1001.73655 | AS23: 198 | AT23: 156.76954 | AU23: 95 | AV23: 1329 | AW23: 1121.64626 | AX23: 145 | AY23: 119.90971 | AZ23: 95 | BA23: 1489 | BB23: 1291.27071 | BC23: 160 | BD23: 169.62445 | BE23: 95 | BF23: 1565 | BG23: 1378.01953 | BH23: 76 | BI23: 86.74882 | BJ23: 95 | BK23: 1630 | BL23: 1433.26742 | BM23: 65 | BN23: 55.24789 | BO23: 96 | BP23: 1141 | BQ23: 1630 | BR23: 1433.26742 | BS23: 65 | BT23: 55.24789
A24: Февраль | B24: ДВН | C24: ЦМБ № 1 | D24: =O4 -> 135 | E24: =P4 -> 209.4498 | F24: =Q4 -> 164 | G24: =Таблица1[[#This Row],[Оплачено случаев]]-Таблица1[[#This Row],[План ДВН, чел.]] -> -29 | H24: =ROUND(Таблица1[[#This Row],[Оплачено случаев]]/Таблица1[[#This Row],[План ДВН, чел.]]*100,1) -> 82.3 | J24: =SUM(J4:J23) -> 2558 | K24: 2733.21733 | L24: 4572 | M24: 6138 | N24: 6497.48042 | O24: 3580 | P24: 3764.26309 | Q24: 4572 | R24: 10503 | S24: 11620.85214 | T24: 4365 | U24: 5123.37172 | V24: 4572 | W24: 15088 | X24: 17735.0372 | Y24: 4585 | Z24: 6114.18506 | AA24: 4572 | AB24: 18874 | AC24: 22213.23806 | AD24: 3786 | AE24: 4478.20086 | AF24: 4571 | AG24: 23044 | AH24: 27321.42478 | AI24: 4170 | AJ24: 5108.18672 | AK24: 4571 | AL24: 27110 | AM24: 32131.87422 | AN24: 4066 | AO24: 4810.44944 | AP24: =SUM(AP4:AP23) -> 4571 | AQ24: 32494 | AR24: 38192.81223 | AS24: 5384 | AT24: 6060.93801 | AU24: 4571 | AV24: 45864 | AW24: 60298.12107 | AX24: 13370 | AY24: 22105.30884 | AZ24: 4571 | BA24: 53364 | BB24: 69453.57683 | BC24: 7500 | BD24: 9155.45576 | BE24: 4571 | BF24: 63466 | BG24: 82349.91743 | BH24: 10102 | BI24: 12896.3406 | BJ24: 4571 | BK24: 70261 | BL24: 91701.02823 | BM24: 6795 | BN24: 9351.1108 | BO24: 4574 | BP24: 54859
A25: Февраль | B25: ДВН | C25: ЦМБ № 2 | D25: 15 | E25: 15.945 | F25: 135 | G25: =Таблица1[[#This Row],[Оплачено случаев]]-Таблица1[[#This Row],[План ДВН, чел.]] -> -120 | H25: =ROUND(Таблица1[[#This Row],[Оплачено случаев]]/Таблица1[[#This Row],[План ДВН, чел.]]*100,1) -> 11.1
A26: Февраль | B26: ДВН | C26: ЦМБ № 3 | D26: 44 | E26: 46.772 | F26: 44 | G26: =Таблица1[[#This Row],[Оплачено случаев]]-Таблица1[[#This Row],[План ДВН, чел.]] -> 0 | H26: =ROUND(Таблица1[[#This Row],[Оплачено случаев]]/Таблица1[[#This Row],[План ДВН, чел.]]*100,1) -> 100 | K26: =K4/1000 -> 0.06832103
A27: Февраль | B27: ДВН | C27: ЦМБ № 4 | D27: 5 | E27: 5.315 | F27: 26 | G27: =Таблица1[[#This Row],[Оплачено случаев]]-Таблица1[[#This Row],[План ДВН, чел.]] -> -21 | H27: =ROUND(Таблица1[[#This Row],[Оплачено случаев]]/Таблица1[[#This Row],[План ДВН, чел.]]*100,1) -> 19.2 | K27: 0.034016
A28: Февраль | B28: ДВН | C28: ЦМБ № 5 | D28: 112 | E28: 100.38615 | F28: 136 | G28: =Таблица1[[#This Row],[Оплачено случаев]]-Таблица1[[#This Row],[План ДВН, чел.]] -> -24 | H28: =ROUND(Таблица1[[#This Row],[Оплачено случаев]]/Таблица1[[#This Row],[План ДВН, чел.]]*100,1) -> 82.4 | K28: 0.040394
A29: Февраль | B29: ДВН | C29: ЦМБ № 6 | D29: 255 | E29: 271.065 | F29: 319 | G29: =Таблица1[[#This Row],[Оплачено случаев]]-Таблица1[[#This Row],[План ДВН, чел.]] -> -64 | H29: =ROUND(Таблица1[[#This Row],[Оплачено случаев]]/Таблица1[[#This Row],[План ДВН, чел.]]*100,1) -> 79.9 | K29: 0.0194092
A30: Февраль | B30: ДВН | C30: КГБ № 5 | D30: 860 | E30: 906.2 | F30: 1163 | G30: =Таблица1[[#This Row],[Оплачено случаев]]-Таблица1[[#This Row],[План ДВН, чел.]] -> -303 | H30: =ROUND(Таблица1[[#This Row],[Оплачено случаев]]/Таблица1[[#This Row],[План ДВН, чел.]]*100,1) -> 73.9 | K30: 0.25247626
A31: Февраль | B31: ДВН | C31: КГКБ № 4 | D31: 869 | E31: 857.2 | F31: 679 | G31: =Таблица1[[#This Row],[Оплачено случаев]]-Таблица1[[#This Row],[План ДВН, чел.]] -> 190 | H31: =ROUND(Таблица1[[#This Row],[Оплачено случаев]]/Таблица1[[#This Row],[План ДВН, чел.]]*100,1) -> 128 | K31: 0.14538589
A32: Февраль | B32: ДВН | C32: Городская поликлиника | D32: 296 | E32: 361.4 | F32: 260 | G32: =Таблица1[[#This Row],[Оплачено случаев]]-Таблица1[[#This Row],[План ДВН, чел.]] -> 36 | H32: =ROUND(Таблица1[[#This Row],[Оплачено случаев]]/Таблица1[[#This Row],[План ДВН, чел.]]*100,1) -> 113.8 | K32: 0.48437447
A33: Февраль | B33: ДВН | C33: МСЧ № 1 г. Калуги | D33: 8 | E33: 7.81586 | F33: 21 | G33: =Таблица1[[#This Row],[Оплачено случаев]]-Таблица1[[#This Row],[План ДВН, чел.]] -> -13 | H33: =ROUND(Таблица1[[#This Row],[Оплачено случаев]]/Таблица1[[#This Row],[План ДВН, чел.]]*100,1) -> 38.1 | K33: 0.47800343
A34: Февраль | B34: ДВН | C34: МСЧ № 2 г. Калуги | D34: 11 | E34: 11.693 | F34: 26 | G34: =Таблица1[[#This Row],[Оплачено случаев]]-Таблица1[[#This Row],[План ДВН, чел.]] -> -15 | H34: =ROUND(Таблица1[[#This Row],[Оплачено случаев]]/Таблица1[[#This Row],[План ДВН, чел.]]*100,1) -> 42.3 | K34: 0.19664007
A35: Февраль | B35: ДВН | C35: МСЧ МВД | D35: 0 | E35: 0 | F35: 1 | G35: =Таблица1[[#This Row],[Оплачено случаев]]-Таблица1[[#This Row],[План ДВН, чел.]] -> -1 | H35: =ROUND(Таблица1[[#This Row],[Оплачено случаев]]/Таблица1[[#This Row],[План ДВН, чел.]]*100,1) -> 0 | K35: 0.056339
A36: Февраль | B36: ДВН | C36: ЧУЗ "Больница "РЖД - Медицина" | D36: 75 | E36: 113.35502 | F36: 57 | G36: =Таблица1[[#This Row],[Оплачено случаев]]-Таблица1[[#This Row],[План ДВН, чел.]] -> 18 | H36: =ROUND(Таблица1[[#This Row],[Оплачено случаев]]/Таблица1[[#This Row],[План ДВН, чел.]]*100,1) -> 131.6 | K36: 0.01063
A37: Февраль | B37: ДВН | C37: КБ № 8 ФМБА | D37: 75 | E37: 79.725 | F37: 350 | G37: =Таблица1[[#This Row],[Оплачено случаев]]-Таблица1[[#This Row],[План ДВН, чел.]] -> -275 | H37: =ROUND(Таблица1[[#This Row],[Оплачено случаев]]/Таблица1[[#This Row],[План ДВН, чел.]]*100,1) -> 21.4 | K37: 0
A38: Февраль | B38: ДВН | C38: ЦРБ Бабынинского района | D38: 29 | E38: 28.76258 | F38: 224 | G38: =Таблица1[[#This Row],[Оплачено случаев]]-Таблица1[[#This Row],[План ДВН, чел.]] -> -195 | H38: =ROUND(Таблица1[[#This Row],[Оплачено случаев]]/Таблица1[[#This Row],[План ДВН, чел.]]*100,1) -> 12.9 | K38: 0.046772
A39: Февраль | B39: ДВН | C39: ЦРБ Боровского района | D39: 73 | E39: 77.599 | F39: 245 | G39: =Таблица1[[#This Row],[Оплачено случаев]]-Таблица1[[#This Row],[План ДВН, чел.]] -> -172 | H39: =ROUND(Таблица1[[#This Row],[Оплачено случаев]]/Таблица1[[#This Row],[План ДВН, чел.]]*100,1) -> 29.8 | K39: 0.131812
A40: Февраль | B40: ДВН | C40: ЦРБ Жуковского района | D40: 18 | E40: 19.134 | F40: 94 | G40: =Таблица1[[#This Row],[Оплачено случаев]]-Таблица1[[#This Row],[План ДВН, чел.]] -> -76 | H40: =ROUND(Таблица1[[#This Row],[Оплачено случаев]]/Таблица1[[#This Row],[План ДВН, чел.]]*100,1) -> 19.1 | K40: 0.117993
A41: Февраль | B41: ДВН | C41: ГП "Город Кременки" | D41: 84 | E41: 146.28905 | F41: 16 | G41: =Таблица1[[#This Row],[Оплачено случаев]]-Таблица1[[#This Row],[План ДВН, чел.]] -> 68 | H41: =ROUND(Таблица1[[#This Row],[Оплачено случаев]]/Таблица1[[#This Row],[План ДВН, чел.]]*100,1) -> 525 | K41: 0.03189
A42: Февраль | B42: ДВН | C42: ЦРБ Малоярославецкого района | D42: 316 | E42: 333.84358 | F42: 517 | G42: =Таблица1[[#This Row],[Оплачено случаев]]-Таблица1[[#This Row],[План ДВН, чел.]] -> -201 | H42: =ROUND(Таблица1[[#This Row],[Оплачено случаев]]/Таблица1[[#This Row],[План ДВН, чел.]]*100,1) -> 61.1 | K42: 0.045709
A43: Февраль | B43: ДВН | C43: ЦРБ Тарусского района | D43: 300 | E43: 172.31305 | F43: 95 | G43: =Таблица1[[#This Row],[Оплачено случаев]]-Таблица1[[#This Row],[План ДВН, чел.]] -> 205 | H43: =ROUND(Таблица1[[#This Row],[Оплачено случаев]]/Таблица1[[#This Row],[План ДВН, чел.]]*100,1) -> 315.8 | K43: 0.39478126
A44: Март | B44: ДВН | C44: ЦМБ № 1 | D44: =T4 -> 147 | E44: =U4 -> 212.79242 | F44: =V4 -> 164 | G44: =Таблица1[[#This Row],[Оплачено случаев]]-Таблица1[[#This Row],[План ДВН, чел.]] -> -17 | H44: =ROUND(Таблица1[[#This Row],[Оплачено случаев]]/Таблица1[[#This Row],[План ДВН, чел.]]*100,1) -> 89.6 | K44: =K23/1000 -> 0.08754086
A45: Март | B45: ДВН | C45: ЦМБ № 2 | D45: 20 | E45: 21.26 | F45: 135 | G45: =Таблица1[[#This Row],[Оплачено случаев]]-Таблица1[[#This Row],[План ДВН, чел.]] -> -115 | H45: =ROUND(Таблица1[[#This Row],[Оплачено случаев]]/Таблица1[[#This Row],[План ДВН, чел.]]*100,1) -> 14.8 | K45: =#REF!/1000 -> 
A46: Март | B46: ДВН | C46: ЦМБ № 3 | D46: 11 | E46: 17.17459 | F46: 44 | G46: =Таблица1[[#This Row],[Оплачено случаев]]-Таблица1[[#This Row],[План ДВН, чел.]] -> -33 | H46: =ROUND(Таблица1[[#This Row],[Оплачено случаев]]/Таблица1[[#This Row],[План ДВН, чел.]]*100,1) -> 25 | K46: =K24/1000 -> 2.73321733
A47: Март | B47: ДВН | C47: ЦМБ № 4 | D47: 2 | E47: 2.126 | F47: 26 | G47: =Таблица1[[#This Row],[Оплачено случаев]]-Таблица1[[#This Row],[План ДВН, чел.]] -> -24 | H47: =ROUND(Таблица1[[#This Row],[Оплачено случаев]]/Таблица1[[#This Row],[План ДВН, чел.]]*100,1) -> 7.7 | K47: 0
A48: Март | B48: ДВН | C48: ЦМБ № 5 | D48: 170 | E48: 132.96214 | F48: 136 | G48: =Таблица1[[#This Row],[Оплачено случаев]]-Таблица1[[#This Row],[План ДВН, чел.]] -> 34 | H48: =ROUND(Таблица1[[#This Row],[Оплачено случаев]]/Таблица1[[#This Row],[План ДВН, чел.]]*100,1) -> 125 | K48: 6.832103e-05
A49: Март | B49: ДВН | C49: ЦМБ № 6 | D49: 276 | E49: 293.388 | F49: 319 | G49: =Таблица1[[#This Row],[Оплачено случаев]]-Таблица1[[#This Row],[План ДВН, чел.]] -> -43 | H49: =ROUND(Таблица1[[#This Row],[Оплачено случаев]]/Таблица1[[#This Row],[План ДВН, чел.]]*100,1) -> 86.5 | K49: 3.4016e-05
A50: Март | B50: ДВН | C50: КГБ № 5 | D50: 771 | E50: 823.2 | F50: 1163 | G50: =Таблица1[[#This Row],[Оплачено случаев]]-Таблица1[[#This Row],[План ДВН, чел.]] -> -392 | H50: =ROUND(Таблица1[[#This Row],[Оплачено случаев]]/Таблица1[[#This Row],[План ДВН, чел.]]*100,1) -> 66.3 | K50: 4.0394e-05
A51: Март | B51: ДВН | C51: КГКБ № 4 | D51: 1105 | E51: 1016.8 | F51: 679 | G51: =Таблица1[[#This Row],[Оплачено случаев]]-Таблица1[[#This Row],[План ДВН, чел.]] -> 426 | H51: =ROUND(Таблица1[[#This Row],[Оплачено случаев]]/Таблица1[[#This Row],[План ДВН, чел.]]*100,1) -> 162.7 | K51: 1.94092e-05
A52: Март | B52: ДВН | C52: Городская поликлиника | D52: 248 | E52: 348.17331 | F52: 260 | G52: =Таблица1[[#This Row],[Оплачено случаев]]-Таблица1[[#This Row],[План ДВН, чел.]] -> -12 | H52: =ROUND(Таблица1[[#This Row],[Оплачено случаев]]/Таблица1[[#This Row],[План ДВН, чел.]]*100,1) -> 95.4 | K52: 0.00025247626
A53: Март | B53: ДВН | C53: МСЧ № 1 г. Калуги | D53: 1 | E53: 1.063 | F53: 21 | G53: =Таблица1[[#This Row],[Оплачено случаев]]-Таблица1[[#This Row],[План ДВН, чел.]] -> -20 | H53: =ROUND(Таблица1[[#This Row],[Оплачено случаев]]/Таблица1[[#This Row],[План ДВН, чел.]]*100,1) -> 4.8 | K53: 0.00014538589
A54: Март | B54: ДВН | C54: МСЧ № 2 г. Калуги | D54: 39 | E54: 41.457 | F54: 26 | G54: =Таблица1[[#This Row],[Оплачено случаев]]-Таблица1[[#This Row],[План ДВН, чел.]] -> 13 | H54: =ROUND(Таблица1[[#This Row],[Оплачено случаев]]/Таблица1[[#This Row],[План ДВН, чел.]]*100,1) -> 150 | K54: 0.00048437447
A55: Март | B55: ДВН | C55: МСЧ МВД | D55: 0 | E55: 0 | F55: 1 | G55: =Таблица1[[#This Row],[Оплачено случаев]]-Таблица1[[#This Row],[План ДВН, чел.]] -> -1 | H55: =ROUND(Таблица1[[#This Row],[Оплачено случаев]]/Таблица1[[#This Row],[План ДВН, чел.]]*100,1) -> 0 | K55: 0.00047800343
A56: Март | B56: ДВН | C56: ЧУЗ "Больница "РЖД - Медицина" | D56: 77 | E56: 118.42713 | F56: 57 | G56: =Таблица1[[#This Row],[Оплачено случаев]]-Таблица1[[#This Row],[План ДВН, чел.]] -> 20 | H56: =ROUND(Таблица1[[#This Row],[Оплачено случаев]]/Таблица1[[#This Row],[План ДВН, чел.]]*100,1) -> 135.1 | K56: 0.00019664007
A57: Март | B57: ДВН | C57: КБ № 8 ФМБА | D57: 226 | E57: 240.238 | F57: 350 | G57: =Таблица1[[#This Row],[Оплачено случаев]]-Таблица1[[#This Row],[План ДВН, чел.]] -> -124 | H57: =ROUND(Таблица1[[#This Row],[Оплачено случаев]]/Таблица1[[#This Row],[План ДВН, чел.]]*100,1) -> 64.6 | K57: 5.6339e-05
A58: Март | B58: ДВН | C58: ЦРБ Бабынинского района | D58: 12 | E58: 11.7993 | F58: 224 | G58: =Таблица1[[#This Row],[Оплачено случаев]]-Таблица1[[#This Row],[План ДВН, чел.]] -> -212 | H58: =ROUND(Таблица1[[#This Row],[Оплачено случаев]]/Таблица1[[#This Row],[План ДВН, чел.]]*100,1) -> 5.4 | K58: 1.063e-05
A59: Март | B59: ДВН | C59: ЦРБ Боровского района | D59: 118 | E59: 124.09674 | F59: 245 | G59: =Таблица1[[#This Row],[Оплачено случаев]]-Таблица1[[#This Row],[План ДВН, чел.]] -> -127 | H59: =ROUND(Таблица1[[#This Row],[Оплачено случаев]]/Таблица1[[#This Row],[План ДВН, чел.]]*100,1) -> 48.2 | K59: 0
A60: Март | B60: ДВН | C60: ЦРБ Жуковского района | D60: 31 | E60: 33 | F60: 94 | G60: =Таблица1[[#This Row],[Оплачено случаев]]-Таблица1[[#This Row],[План ДВН, чел.]] -> -63 | H60: =ROUND(Таблица1[[#This Row],[Оплачено случаев]]/Таблица1[[#This Row],[План ДВН, чел.]]*100,1) -> 33 | K60: 4.6772e-05
A61: Март | B61: ДВН | C61: ГП "Город Кременки" | D61: 119 | E61: 208.79328 | F61: 16 | G61: =Таблица1[[#This Row],[Оплачено случаев]]-Таблица1[[#This Row],[План ДВН, чел.]] -> 103 | H61: =ROUND(Таблица1[[#This Row],[Оплачено случаев]]/Таблица1[[#This Row],[План ДВН, чел.]]*100,1) -> 743.8 | K61: 0.000131812
A62: Март | B62: ДВН | C62: ЦРБ Малоярославецкого района | D62: 775 | E62: 1269 | F62: 517 | G62: =Таблица1[[#This Row],[Оплачено случаев]]-Таблица1[[#This Row],[План ДВН, чел.]] -> 258 | H62: =ROUND(Таблица1[[#This Row],[Оплачено случаев]]/Таблица1[[#This Row],[План ДВН, чел.]]*100,1) -> 149.9 | K62: 0.000117993
A63: Март | B63: ДВН | C63: ЦРБ Тарусского района | D63: 217 | E63: 207.62081 | F63: 95 | G63: =Таблица1[[#This Row],[Оплачено случаев]]-Таблица1[[#This Row],[План ДВН, чел.]] -> 122 | H63: =ROUND(Таблица1[[#This Row],[Оплачено случаев]]/Таблица1[[#This Row],[План ДВН, чел.]]*100,1) -> 228.4 | K63: 3.189e-05
A64: Апрель | B64: ДВН | C64: ЦМБ № 1 | D64: =Y4 -> 68 | E64: =Z4 -> 122.63385 | F64: =AA4 -> 164 | G64: =Таблица1[[#This Row],[Оплачено случаев]]-Таблица1[[#This Row],[План ДВН, чел.]] -> -96 | H64: =ROUND(Таблица1[[#This Row],[Оплачено случаев]]/Таблица1[[#This Row],[План ДВН, чел.]]*100,1) -> 41.5 | K64: =K43/1000 -> 0.00039478126
A65: Апрель | B65: ДВН | C65: ЦМБ № 2 | D65: 13 | E65: 13.81 | F65: 135 | G65: =Таблица1[[#This Row],[Оплачено случаев]]-Таблица1[[#This Row],[План ДВН, чел.]] -> -122 | H65: =ROUND(Таблица1[[#This Row],[Оплачено случаев]]/Таблица1[[#This Row],[План ДВН, чел.]]*100,1) -> 9.6 | K65: =#REF!/1000 -> 
A66: Апрель | B66: ДВН | C66: ЦМБ № 3 | D66: 14 | E66: 22.83175 | F66: 44 | G66: =Таблица1[[#This Row],[Оплачено случаев]]-Таблица1[[#This Row],[План ДВН, чел.]] -> -30 | H66: =ROUND(Таблица1[[#This Row],[Оплачено случаев]]/Таблица1[[#This Row],[План ДВН, чел.]]*100,1) -> 31.8 | K66: =K44/1000 -> 8.754086e-05
A67: Апрель | B67: ДВН | C67: ЦМБ № 4 | D67: 2 | E67: 2.126 | F67: 26 | G67: =Таблица1[[#This Row],[Оплачено случаев]]-Таблица1[[#This Row],[План ДВН, чел.]] -> -24 | H67: =ROUND(Таблица1[[#This Row],[Оплачено случаев]]/Таблица1[[#This Row],[План ДВН, чел.]]*100,1) -> 7.7
A68: Апрель | B68: ДВН | C68: ЦМБ № 5 | D68: 177 | E68: 168.33657 | F68: 136 | G68: =Таблица1[[#This Row],[Оплачено случаев]]-Таблица1[[#This Row],[План ДВН, чел.]] -> 41 | H68: =ROUND(Таблица1[[#This Row],[Оплачено случаев]]/Таблица1[[#This Row],[План ДВН, чел.]]*100,1) -> 130.1 | K68: 0.00273321733
A69: Апрель | B69: ДВН | C69: ЦМБ № 6 | D69: 215 | E69: 228.545 | F69: 319 | G69: =Таблица1[[#This Row],[Оплачено случаев]]-Таблица1[[#This Row],[План ДВН, чел.]] -> -104 | H69: =ROUND(Таблица1[[#This Row],[Оплачено случаев]]/Таблица1[[#This Row],[План ДВН, чел.]]*100,1) -> 67.4 | K69: 0
A70: Апрель | B70: ДВН | C70: КГБ № 5 | D70: 804 | E70: 867.76315 | F70: 1163 | G70: =Таблица1[[#This Row],[Оплачено случаев]]-Таблица1[[#This Row],[План ДВН, чел.]] -> -359 | H70: =ROUND(Таблица1[[#This Row],[Оплачено случаев]]/Таблица1[[#This Row],[План ДВН, чел.]]*100,1) -> 69.1 | K70: 6.832103e-08
A71: Апрель | B71: ДВН | C71: КГКБ № 4 | D71: 954 | E71: 924.11957 | F71: 679 | G71: =Таблица1[[#This Row],[Оплачено случаев]]-Таблица1[[#This Row],[План ДВН, чел.]] -> 275 | H71: =ROUND(Таблица1[[#This Row],[Оплачено случаев]]/Таблица1[[#This Row],[План ДВН, чел.]]*100,1) -> 140.5 | K71: 3.4016e-08
A72: Апрель | B72: ДВН | C72: Городская поликлиника | D72: 205 | E72: 295.18139 | F72: 260 | G72: =Таблица1[[#This Row],[Оплачено случаев]]-Таблица1[[#This Row],[План ДВН, чел.]] -> -55 | H72: =ROUND(Таблица1[[#This Row],[Оплачено случаев]]/Таблица1[[#This Row],[План ДВН, чел.]]*100,1) -> 78.8 | K72: 4.0394e-08
A73: Апрель | B73: ДВН | C73: МСЧ № 1 г. Калуги | D73: 6 | E73: 8.8716 | F73: 21 | G73: =Таблица1[[#This Row],[Оплачено случаев]]-Таблица1[[#This Row],[План ДВН, чел.]] -> -15 | H73: =ROUND(Таблица1[[#This Row],[Оплачено случаев]]/Таблица1[[#This Row],[План ДВН, чел.]]*100,1) -> 28.6 | K73: 1.94092e-08
A74: Апрель | B74: ДВН | C74: МСЧ № 2 г. Калуги | D74: 7 | E74: 7.441 | F74: 26 | G74: =Таблица1[[#This Row],[Оплачено случаев]]-Таблица1[[#This Row],[План ДВН, чел.]] -> -19 | H74: =ROUND(Таблица1[[#This Row],[Оплачено случаев]]/Таблица1[[#This Row],[План ДВН, чел.]]*100,1) -> 26.9 | K74: 2.5247626e-07
A75: Апрель | B75: ДВН | C75: МСЧ МВД | D75: 0 | E75: 0 | F75: 1 | G75: =Таблица1[[#This Row],[Оплачено случаев]]-Таблица1[[#This Row],[План ДВН, чел.]] -> -1 | H75: =ROUND(Таблица1[[#This Row],[Оплачено случаев]]/Таблица1[[#This Row],[План ДВН, чел.]]*100,1) -> 0 | K75: 1.4538589e-07
A76: Апрель | B76: ДВН | C76: ЧУЗ "Больница "РЖД - Медицина" | D76: 65 | E76: 114.37852 | F76: 57 | G76: =Таблица1[[#This Row],[Оплачено случаев]]-Таблица1[[#This Row],[План ДВН, чел.]] -> 8 | H76: =ROUND(Таблица1[[#This Row],[Оплачено случаев]]/Таблица1[[#This Row],[План ДВН, чел.]]*100,1) -> 114 | K76: 4.8437447e-07
A77: Апрель | B77: ДВН | C77: КБ № 8 ФМБА | D77: 200 | E77: 212.6 | F77: 350 | G77: =Таблица1[[#This Row],[Оплачено случаев]]-Таблица1[[#This Row],[План ДВН, чел.]] -> -150 | H77: =ROUND(Таблица1[[#This Row],[Оплачено случаев]]/Таблица1[[#This Row],[План ДВН, чел.]]*100,1) -> 57.1 | K77: 4.7800343e-07
A78: Апрель | B78: ДВН | C78: ЦРБ Бабынинского района | D78: 12 | E78: 17.13385 | F78: 224 | G78: =Таблица1[[#This Row],[Оплачено случаев]]-Таблица1[[#This Row],[План ДВН, чел.]] -> -212 | H78: =ROUND(Таблица1[[#This Row],[Оплачено случаев]]/Таблица1[[#This Row],[План ДВН, чел.]]*100,1) -> 5.4 | K78: 1.9664007e-07
A79: Апрель | B79: ДВН | C79: ЦРБ Боровского района | D79: 860 | E79: 1656.60763 | F79: 245 | G79: =Таблица1[[#This Row],[Оплачено случаев]]-Таблица1[[#This Row],[План ДВН, чел.]] -> 615 | H79: =ROUND(Таблица1[[#This Row],[Оплачено случаев]]/Таблица1[[#This Row],[План ДВН, чел.]]*100,1) -> 351 | K79: 5.6339e-08
A80: Апрель | B80: ДВН | C80: ЦРБ Жуковского района | D80: 43 | E80: 45.4964 | F80: 94 | G80: =Таблица1[[#This Row],[Оплачено случаев]]-Таблица1[[#This Row],[План ДВН, чел.]] -> -51 | H80: =ROUND(Таблица1[[#This Row],[Оплачено случаев]]/Таблица1[[#This Row],[План ДВН, чел.]]*100,1) -> 45.7 | K80: 1.063e-08
A81: Апрель | B81: ДВН | C81: ГП "Город Кременки" | D81: 50 | E81: 66.16597 | F81: 16 | G81: =Таблица1[[#This Row],[Оплачено случаев]]-Таблица1[[#This Row],[План ДВН, чел.]] -> 34 | H81: =ROUND(Таблица1[[#This Row],[Оплачено случаев]]/Таблица1[[#This Row],[План ДВН, чел.]]*100,1) -> 312.5 | K81: 0
A82: Апрель | B82: ДВН | C82: ЦРБ Малоярославецкого района | D82: 756 | E82: 1199.13865 | F82: 517 | G82: =Таблица1[[#This Row],[Оплачено случаев]]-Таблица1[[#This Row],[План ДВН, чел.]] -> 239 | H82: =ROUND(Таблица1[[#This Row],[Оплачено случаев]]/Таблица1[[#This Row],[План ДВН, чел.]]*100,1) -> 146.2 | K82: 4.6772e-08
A83: Апрель | B83: ДВН | C83: ЦРБ Тарусского района | D83: 134 | E83: 141.00416 | F83: 95 | G83: =Таблица1[[#This Row],[Оплачено случаев]]-Таблица1[[#This Row],[План ДВН, чел.]] -> 39 | H83: =ROUND(Таблица1[[#This Row],[Оплачено случаев]]/Таблица1[[#This Row],[План ДВН, чел.]]*100,1) -> 141.1 | K83: 1.31812e-07
A84: Май | B84: ДВН | C84: ЦМБ № 1 | D84: =AD4 -> 79 | E84: =AE4 -> 91.03953 | F84: =AF4 -> 164 | G84: =Таблица1[[#This Row],[Оплачено случаев]]-Таблица1[[#This Row],[План ДВН, чел.]] -> -85 | H84: =ROUND(Таблица1[[#This Row],[Оплачено случаев]]/Таблица1[[#This Row],[План ДВН, чел.]]*100,1) -> 48.2 | K84: =K63/1000 -> 3.189e-08
A85: Май | B85: ДВН | C85: ЦМБ № 2 | D85: 15 | E85: 15.945 | F85: 135 | G85: =Таблица1[[#This Row],[Оплачено случаев]]-Таблица1[[#This Row],[План ДВН, чел.]] -> -120 | H85: =ROUND(Таблица1[[#This Row],[Оплачено случаев]]/Таблица1[[#This Row],[План ДВН, чел.]]*100,1) -> 11.1 | K85: =#REF!/1000 -> 
A86: Май | B86: ДВН | C86: ЦМБ № 3 | D86: 12 | E86: 17.30146 | F86: 44 | G86: =Таблица1[[#This Row],[Оплачено случаев]]-Таблица1[[#This Row],[План ДВН, чел.]] -> -32 | H86: =ROUND(Таблица1[[#This Row],[Оплачено случаев]]/Таблица1[[#This Row],[План ДВН, чел.]]*100,1) -> 27.3 | K86: =K64/1000 -> 3.9478126e-07
A87: Май | B87: ДВН | C87: ЦМБ № 4 | D87: 1 | E87: 1.063 | F87: 26 | G87: =Таблица1[[#This Row],[Оплачено случаев]]-Таблица1[[#This Row],[План ДВН, чел.]] -> -25 | H87: =ROUND(Таблица1[[#This Row],[Оплачено случаев]]/Таблица1[[#This Row],[План ДВН, чел.]]*100,1) -> 3.8
A88: Май | B88: ДВН | C88: ЦМБ № 5 | D88: 139 | E88: 135.61189 | F88: 136 | G88: =Таблица1[[#This Row],[Оплачено случаев]]-Таблица1[[#This Row],[План ДВН, чел.]] -> 3 | H88: =ROUND(Таблица1[[#This Row],[Оплачено случаев]]/Таблица1[[#This Row],[План ДВН, чел.]]*100,1) -> 102.2 | K88: 8.754086e-08
A89: Май | B89: ДВН | C89: ЦМБ № 6 | D89: 185 | E89: 196.655 | F89: 319 | G89: =Таблица1[[#This Row],[Оплачено случаев]]-Таблица1[[#This Row],[План ДВН, чел.]] -> -134 | H89: =ROUND(Таблица1[[#This Row],[Оплачено случаев]]/Таблица1[[#This Row],[План ДВН, чел.]]*100,1) -> 58
A90: Май | B90: ДВН | C90: КГБ № 5 | D90: 760 | E90: 901.1621 | F90: 1163 | G90: =Таблица1[[#This Row],[Оплачено случаев]]-Таблица1[[#This Row],[План ДВН, чел.]] -> -403 | H90: =ROUND(Таблица1[[#This Row],[Оплачено случаев]]/Таблица1[[#This Row],[План ДВН, чел.]]*100,1) -> 65.3 | K90: 2.73321733e-06
A91: Май | B91: ДВН | C91: КГКБ № 4 | D91: 1118 | E91: 1096.80415 | F91: 679 | G91: =Таблица1[[#This Row],[Оплачено случаев]]-Таблица1[[#This Row],[План ДВН, чел.]] -> 439 | H91: =ROUND(Таблица1[[#This Row],[Оплачено случаев]]/Таблица1[[#This Row],[План ДВН, чел.]]*100,1) -> 164.7 | K91: 0
A92: Май | B92: ДВН | C92: Городская поликлиника | D92: 139 | E92: 195.03623 | F92: 260 | G92: =Таблица1[[#This Row],[Оплачено случаев]]-Таблица1[[#This Row],[План ДВН, чел.]] -> -121 | H92: =ROUND(Таблица1[[#This Row],[Оплачено случаев]]/Таблица1[[#This Row],[План ДВН, чел.]]*100,1) -> 53.5 | K92: 6.832103e-11
A93: Май | B93: ДВН | C93: МСЧ № 1 г. Калуги | D93: 1 | E93: 1.063 | F93: 21 | G93: =Таблица1[[#This Row],[Оплачено случаев]]-Таблица1[[#This Row],[План ДВН, чел.]] -> -20 | H93: =ROUND(Таблица1[[#This Row],[Оплачено случаев]]/Таблица1[[#This Row],[План ДВН, чел.]]*100,1) -> 4.8 | K93: 3.4016e-11
A94: Май | B94: ДВН | C94: МСЧ № 2 г. Калуги | D94: 2 | E94: 2.126 | F94: 26 | G94: =Таблица1[[#This Row],[Оплачено случаев]]-Таблица1[[#This Row],[План ДВН, чел.]] -> -24 | H94: =ROUND(Таблица1[[#This Row],[Оплачено случаев]]/Таблица1[[#This Row],[План ДВН, чел.]]*100,1) -> 7.7 | K94: 4.0394e-11
A95: Май | B95: ДВН | C95: МСЧ МВД | D95: 0 | E95: 0 | F95: 0 | G95: =Таблица1[[#This Row],[Оплачено случаев]]-Таблица1[[#This Row],[План ДВН, чел.]] -> 0 | H95: =ROUND(Таблица1[[#This Row],[Оплачено случаев]]/Таблица1[[#This Row],[План ДВН, чел.]]*100,1) ->  | K95: 1.94092e-11
A96: Май | B96: ДВН | C96: ЧУЗ "Больница "РЖД - Медицина" | D96: 41 | E96: 78.09976 | F96: 57 | G96: =Таблица1[[#This Row],[Оплачено случаев]]-Таблица1[[#This Row],[План ДВН, чел.]] -> -16 | H96: =ROUND(Таблица1[[#This Row],[Оплачено случаев]]/Таблица1[[#This Row],[План ДВН, чел.]]*100,1) -> 71.9 | K96: 2.5247626e-10
A97: Май | B97: ДВН | C97: КБ № 8 ФМБА | D97: 238 | E97: 252.994 | F97: 350 | G97: =Таблица1[[#This Row],[Оплачено случаев]]-Таблица1[[#This Row],[План ДВН, чел.]] -> -112 | H97: =ROUND(Таблица1[[#This Row],[Оплачено случаев]]/Таблица1[[#This Row],[План ДВН, чел.]]*100,1) -> 68 | K97: 1.4538589e-10
A98: Май | B98: ДВН | C98: ЦРБ Бабынинского района | D98: 8 | E98: 9.02175 | F98: 224 | G98: =Таблица1[[#This Row],[Оплачено случаев]]-Таблица1[[#This Row],[План ДВН, чел.]] -> -216 | H98: =ROUND(Таблица1[[#This Row],[Оплачено случаев]]/Таблица1[[#This Row],[План ДВН, чел.]]*100,1) -> 3.6 | K98: 4.8437447e-10
A99: Май | B99: ДВН | C99: ЦРБ Боровского района | D99: 292 | E99: 450.98684 | F99: 245 | G99: =Таблица1[[#This Row],[Оплачено случаев]]-Таблица1[[#This Row],[План ДВН, чел.]] -> 47 | H99: =ROUND(Таблица1[[#This Row],[Оплачено случаев]]/Таблица1[[#This Row],[План ДВН, чел.]]*100,1) -> 119.2 | K99: 4.7800343e-10
A100: Май | B100: ДВН | C100: ЦРБ Жуковского района | D100: 55 | E100: 58.465 | F100: 94 | G100: =Таблица1[[#This Row],[Оплачено случаев]]-Таблица1[[#This Row],[План ДВН, чел.]] -> -39 | H100: =ROUND(Таблица1[[#This Row],[Оплачено случаев]]/Таблица1[[#This Row],[План ДВН, чел.]]*100,1) -> 58.5 | K100: 1.9664007e-10
A101: Май | B101: ДВН | C101: ГП "Город Кременки" | D101: 54 | E101: 69.70808 | F101: 16 | G101: =Таблица1[[#This Row],[Оплачено случаев]]-Таблица1[[#This Row],[План ДВН, чел.]] -> 38 | H101: =ROUND(Таблица1[[#This Row],[Оплачено случаев]]/Таблица1[[#This Row],[План ДВН, чел.]]*100,1) -> 337.5 | K101: 5.6339e-11
A102: Май | B102: ДВН | C102: ЦРБ Малоярославецкого района | D102: 551 | E102: 814.04337 | F102: 517 | G102: =Таблица1[[#This Row],[Оплачено случаев]]-Таблица1[[#This Row],[План ДВН, чел.]] -> 34 | H102: =ROUND(Таблица1[[#This Row],[Оплачено случаев]]/Таблица1[[#This Row],[План ДВН, чел.]]*100,1) -> 106.6 | K102: 1.063e-11
A103: Май | B103: ДВН | C103: ЦРБ Тарусского района | D103: 96 | E103: 91.0747 | F103: 95 | G103: =Таблица1[[#This Row],[Оплачено случаев]]-Таблица1[[#This Row],[План ДВН, чел.]] -> 1 | H103: =ROUND(Таблица1[[#This Row],[Оплачено случаев]]/Таблица1[[#This Row],[План ДВН, чел.]]*100,1) -> 101.1 | K103: 0
A104: Июнь | B104: ДВН | C104: ЦМБ № 1 | D104: =AI4 -> 122 | E104: =AJ4 -> 210.32619 | F104: =AK4 -> 164 | G104: =Таблица1[[#This Row],[Оплачено случаев]]-Таблица1[[#This Row],[План ДВН, чел.]] -> -42 | H104: =ROUND(Таблица1[[#This Row],[Оплачено случаев]]/Таблица1[[#This Row],[План ДВН, чел.]]*100,1) -> 74.4 | K104: =K83/1000 -> 1.31812e-10
A105: Июнь | B105: ДВН | C105: ЦМБ № 2 | D105: 67 | E105: 71.221 | F105: 135 | G105: =Таблица1[[#This Row],[Оплачено случаев]]-Таблица1[[#This Row],[План ДВН, чел.]] -> -68 | H105: =ROUND(Таблица1[[#This Row],[Оплачено случаев]]/Таблица1[[#This Row],[План ДВН, чел.]]*100,1) -> 49.6 | K105: =#REF!/1000 -> 
A106: Июнь | B106: ДВН | C106: ЦМБ № 3 | D106: 60 | E106: 84.03313 | F106: 44 | G106: =Таблица1[[#This Row],[Оплачено случаев]]-Таблица1[[#This Row],[План ДВН, чел.]] -> 16 | H106: =ROUND(Таблица1[[#This Row],[Оплачено случаев]]/Таблица1[[#This Row],[План ДВН, чел.]]*100,1) -> 136.4 | K106: =K84/1000 -> 3.189e-11
A107: Июнь | B107: ДВН | C107: ЦМБ № 4 | D107: 0 | E107: 0 | F107: 26 | G107: =Таблица1[[#This Row],[Оплачено случаев]]-Таблица1[[#This Row],[План ДВН, чел.]] -> -26 | H107: =ROUND(Таблица1[[#This Row],[Оплачено случаев]]/Таблица1[[#This Row],[План ДВН, чел.]]*100,1) -> 0
A108: Июнь | B108: ДВН | C108: ЦМБ № 5 | D108: 77 | E108: 66.10573 | F108: 136 | G108: =Таблица1[[#This Row],[Оплачено случаев]]-Таблица1[[#This Row],[План ДВН, чел.]] -> -59 | H108: =ROUND(Таблица1[[#This Row],[Оплачено случаев]]/Таблица1[[#This Row],[План ДВН, чел.]]*100,1) -> 56.6 | K108: 3.9478126e-10
A109: Июнь | B109: ДВН | C109: ЦМБ № 6 | D109: 356 | E109: 448.33387 | F109: 319 | G109: =Таблица1[[#This Row],[Оплачено случаев]]-Таблица1[[#This Row],[План ДВН, чел.]] -> 37 | H109: =ROUND(Таблица1[[#This Row],[Оплачено случаев]]/Таблица1[[#This Row],[План ДВН, чел.]]*100,1) -> 111.6
A110: Июнь | B110: ДВН | C110: КГБ № 5 | D110: 846 | E110: 1021.4281 | F110: 1163 | G110: =Таблица1[[#This Row],[Оплачено случаев]]-Таблица1[[#This Row],[План ДВН, чел.]] -> -317 | H110: =ROUND(Таблица1[[#This Row],[Оплачено случаев]]/Таблица1[[#This Row],[План ДВН, чел.]]*100,1) -> 72.7 | K110: 8.754086e-11
A111: Июнь | B111: ДВН | C111: КГКБ № 4 | D111: 1056 | E111: 1026.90021 | F111: 679 | G111: =Таблица1[[#This Row],[Оплачено случаев]]-Таблица1[[#This Row],[План ДВН, чел.]] -> 377 | H111: =ROUND(Таблица1[[#This Row],[Оплачено случаев]]/Таблица1[[#This Row],[План ДВН, чел.]]*100,1) -> 155.5
A112: Июнь | B112: ДВН | C112: Городская поликлиника | D112: 63 | E112: 90.82131 | F112: 260 | G112: =Таблица1[[#This Row],[Оплачено случаев]]-Таблица1[[#This Row],[План ДВН, чел.]] -> -197 | H112: =ROUND(Таблица1[[#This Row],[Оплачено случаев]]/Таблица1[[#This Row],[План ДВН, чел.]]*100,1) -> 24.2 | K112: 2.73321733e-09
A113: Июнь | B113: ДВН | C113: МСЧ № 1 г. Калуги | D113: 1 | E113: 1.68705 | F113: 21 | G113: =Таблица1[[#This Row],[Оплачено случаев]]-Таблица1[[#This Row],[План ДВН, чел.]] -> -20 | H113: =ROUND(Таблица1[[#This Row],[Оплачено случаев]]/Таблица1[[#This Row],[План ДВН, чел.]]*100,1) -> 4.8 | K113: 0
A114: Июнь | B114: ДВН | C114: МСЧ № 2 г. Калуги | D114: 2 | E114: 2.126 | F114: 26 | G114: =Таблица1[[#This Row],[Оплачено случаев]]-Таблица1[[#This Row],[План ДВН, чел.]] -> -24 | H114: =ROUND(Таблица1[[#This Row],[Оплачено случаев]]/Таблица1[[#This Row],[План ДВН, чел.]]*100,1) -> 7.7 | K114: 6.832103e-14
A115: Июнь | B115: ДВН | C115: МСЧ МВД | D115: 0 | E115: 0 | F115: 0 | G115: =Таблица1[[#This Row],[Оплачено случаев]]-Таблица1[[#This Row],[План ДВН, чел.]] -> 0 | H115: =ROUND(Таблица1[[#This Row],[Оплачено случаев]]/Таблица1[[#This Row],[План ДВН, чел.]]*100,1) ->  | K115: 3.4016e-14
A116: Июнь | B116: ДВН | C116: ЧУЗ "Больница "РЖД - Медицина" | D116: 30 | E116: 63.63536 | F116: 57 | G116: =Таблица1[[#This Row],[Оплачено случаев]]-Таблица1[[#This Row],[План ДВН, чел.]] -> -27 | H116: =ROUND(Таблица1[[#This Row],[Оплачено случаев]]/Таблица1[[#This Row],[План ДВН, чел.]]*100,1) -> 52.6 | K116: 4.0394e-14
A117: Июнь | B117: ДВН | C117: КБ № 8 ФМБА | D117: 347 | E117: 368.861 | F117: 350 | G117: =Таблица1[[#This Row],[Оплачено случаев]]-Таблица1[[#This Row],[План ДВН, чел.]] -> -3 | H117: =ROUND(Таблица1[[#This Row],[Оплачено случаев]]/Таблица1[[#This Row],[План ДВН, чел.]]*100,1) -> 99.1 | K117: 1.94092e-14
A118: Июнь | B118: ДВН | C118: ЦРБ Бабынинского района | D118: 34 | E118: 49.09487 | F118: 224 | G118: =Таблица1[[#This Row],[Оплачено случаев]]-Таблица1[[#This Row],[План ДВН, чел.]] -> -190 | H118: =ROUND(Таблица1[[#This Row],[Оплачено случаев]]/Таблица1[[#This Row],[План ДВН, чел.]]*100,1) -> 15.2 | K118: 2.5247626e-13
A119: Июнь | B119: ДВН | C119: ЦРБ Боровского района | D119: 325 | E119: 549.92448 | F119: 245 | G119: =Таблица1[[#This Row],[Оплачено случаев]]-Таблица1[[#This Row],[План ДВН, чел.]] -> 80 | H119: =ROUND(Таблица1[[#This Row],[Оплачено случаев]]/Таблица1[[#This Row],[План ДВН, чел.]]*100,1) -> 132.7 | K119: 1.4538589e-13
A120: Июнь | B120: ДВН | C120: ЦРБ Жуковского района | D120: 34 | E120: 36.142 | F120: 94 | G120: =Таблица1[[#This Row],[Оплачено случаев]]-Таблица1[[#This Row],[План ДВН, чел.]] -> -60 | H120: =ROUND(Таблица1[[#This Row],[Оплачено случаев]]/Таблица1[[#This Row],[План ДВН, чел.]]*100,1) -> 36.2 | K120: 4.8437447e-13
A121: Июнь | B121: ДВН | C121: ГП "Город Кременки" | D121: 64 | E121: 75.1032 | F121: 16 | G121: =Таблица1[[#This Row],[Оплачено случаев]]-Таблица1[[#This Row],[План ДВН, чел.]] -> 48 | H121: =ROUND(Таблица1[[#This Row],[Оплачено случаев]]/Таблица1[[#This Row],[План ДВН, чел.]]*100,1) -> 400 | K121: 4.7800343e-13
A122: Июнь | B122: ДВН | C122: ЦРБ Малоярославецкого района | D122: 579 | E122: 845.04286 | F122: 517 | G122: =Таблица1[[#This Row],[Оплачено случаев]]-Таблица1[[#This Row],[План ДВН, чел.]] -> 62 | H122: =ROUND(Таблица1[[#This Row],[Оплачено случаев]]/Таблица1[[#This Row],[План ДВН, чел.]]*100,1) -> 112 | K122: 1.9664007e-13
A123: Июнь | B123: ДВН | C123: ЦРБ Тарусского района | D123: 107 | E123: 97.40036 | F123: 95 | G123: =Таблица1[[#This Row],[Оплачено случаев]]-Таблица1[[#This Row],[План ДВН, чел.]] -> 12 | H123: =ROUND(Таблица1[[#This Row],[Оплачено случаев]]/Таблица1[[#This Row],[План ДВН, чел.]]*100,1) -> 112.6 | K123: 5.6339e-14
A124: Июль | B124: ДВН | C124: ЦМБ № 1 | D124: =AN4 -> 110 | E124: =AO4 -> 147.97803 | F124: =AP4 -> 164 | G124: =Таблица1[[#This Row],[Оплачено случаев]]-Таблица1[[#This Row],[План ДВН, чел.]] -> -54 | H124: =ROUND(Таблица1[[#This Row],[Оплачено случаев]]/Таблица1[[#This Row],[План ДВН, чел.]]*100,1) -> 67.1
A125: Июль | B125: ДВН | C125: ЦМБ № 2 | D125: 39 | E125: 41.457 | F125: 135 | G125: =Таблица1[[#This Row],[Оплачено случаев]]-Таблица1[[#This Row],[План ДВН, чел.]] -> -96 | H125: =ROUND(Таблица1[[#This Row],[Оплачено случаев]]/Таблица1[[#This Row],[План ДВН, чел.]]*100,1) -> 28.9
A126: Июль | B126: ДВН | C126: ЦМБ № 3 | D126: 39 | E126: 42.54956 | F126: 44 | G126: =Таблица1[[#This Row],[Оплачено случаев]]-Таблица1[[#This Row],[План ДВН, чел.]] -> -5 | H126: =ROUND(Таблица1[[#This Row],[Оплачено случаев]]/Таблица1[[#This Row],[План ДВН, чел.]]*100,1) -> 88.6
A127: Июль | B127: ДВН | C127: ЦМБ № 4 | D127: 1 | E127: 1.063 | F127: 26 | G127: =Таблица1[[#This Row],[Оплачено случаев]]-Таблица1[[#This Row],[План ДВН, чел.]] -> -25 | H127: =ROUND(Таблица1[[#This Row],[Оплачено случаев]]/Таблица1[[#This Row],[План ДВН, чел.]]*100,1) -> 3.8
A128: Июль | B128: ДВН | C128: ЦМБ № 5 | D128: 140 | E128: 124.8628 | F128: 136 | G128: =Таблица1[[#This Row],[Оплачено случаев]]-Таблица1[[#This Row],[План ДВН, чел.]] -> 4 | H128: =ROUND(Таблица1[[#This Row],[Оплачено случаев]]/Таблица1[[#This Row],[План ДВН, чел.]]*100,1) -> 102.9
A129: Июль | B129: ДВН | C129: ЦМБ № 6 | D129: 299 | E129: 317.837 | F129: 319 | G129: =Таблица1[[#This Row],[Оплачено случаев]]-Таблица1[[#This Row],[План ДВН, чел.]] -> -20 | H129: =ROUND(Таблица1[[#This Row],[Оплачено случаев]]/Таблица1[[#This Row],[План ДВН, чел.]]*100,1) -> 93.7
A130: Июль | B130: ДВН | C130: КГБ № 5 | D130: 618 | E130: 745.63008 | F130: 1163 | G130: =Таблица1[[#This Row],[Оплачено случаев]]-Таблица1[[#This Row],[План ДВН, чел.]] -> -545 | H130: =ROUND(Таблица1[[#This Row],[Оплачено случаев]]/Таблица1[[#This Row],[План ДВН, чел.]]*100,1) -> 53.1
A131: Июль | B131: ДВН | C131: КГКБ № 4 | D131: 1194 | E131: 1076.14454 | F131: 679 | G131: =Таблица1[[#This Row],[Оплачено случаев]]-Таблица1[[#This Row],[План ДВН, чел.]] -> 515 | H131: =ROUND(Таблица1[[#This Row],[Оплачено случаев]]/Таблица1[[#This Row],[План ДВН, чел.]]*100,1) -> 175.8
A132: Июль | B132: ДВН | C132: Городская поликлиника | D132: 95 | E132: 122.05339 | F132: 260 | G132: =Таблица1[[#This Row],[Оплачено случаев]]-Таблица1[[#This Row],[План ДВН, чел.]] -> -165 | H132: =ROUND(Таблица1[[#This Row],[Оплачено случаев]]/Таблица1[[#This Row],[План ДВН, чел.]]*100,1) -> 36.5
A133: Июль | B133: ДВН | C133: МСЧ № 1 г. Калуги | D133: 3 | E133: 4.2669 | F133: 21 | G133: =Таблица1[[#This Row],[Оплачено случаев]]-Таблица1[[#This Row],[План ДВН, чел.]] -> -18 | H133: =ROUND(Таблица1[[#This Row],[Оплачено случаев]]/Таблица1[[#This Row],[План ДВН, чел.]]*100,1) -> 14.3
A134: Июль | B134: ДВН | C134: МСЧ № 2 г. Калуги | D134: 10 | E134: 10.63 | F134: 26 | G134: =Таблица1[[#This Row],[Оплачено случаев]]-Таблица1[[#This Row],[План ДВН, чел.]] -> -16 | H134: =ROUND(Таблица1[[#This Row],[Оплачено случаев]]/Таблица1[[#This Row],[План ДВН, чел.]]*100,1) -> 38.5
A135: Июль | B135: ДВН | C135: МСЧ МВД | D135: 0 | E135: 0 | F135: 0 | G135: =Таблица1[[#This Row],[Оплачено случаев]]-Таблица1[[#This Row],[План ДВН, чел.]] -> 0 | H135: =ROUND(Таблица1[[#This Row],[Оплачено случаев]]/Таблица1[[#This Row],[План ДВН, чел.]]*100,1) -> 
A136: Июль | B136: ДВН | C136: ЧУЗ "Больница "РЖД - Медицина" | D136: 12 | E136: 23.4346 | F136: 57 | G136: =Таблица1[[#This Row],[Оплачено случаев]]-Таблица1[[#This Row],[План ДВН, чел.]] -> -45 | H136: =ROUND(Таблица1[[#This Row],[Оплачено случаев]]/Таблица1[[#This Row],[План ДВН, чел.]]*100,1) -> 21.1
A137: Июль | B137: ДВН | C137: КБ № 8 ФМБА | D137: 271 | E137: 288.073 | F137: 350 | G137: =Таблица1[[#This Row],[Оплачено случаев]]-Таблица1[[#This Row],[План ДВН, чел.]] -> -79 | H137: =ROUND(Таблица1[[#This Row],[Оплачено случаев]]/Таблица1[[#This Row],[План ДВН, чел.]]*100,1) -> 77.4
A138: Июль | B138: ДВН | C138: ЦРБ Бабынинского района | D138: 176 | E138: 327.21831 | F138: 224 | G138: =Таблица1[[#This Row],[Оплачено случаев]]-Таблица1[[#This Row],[План ДВН, чел.]] -> -48 | H138: =ROUND(Таблица1[[#This Row],[Оплачено случаев]]/Таблица1[[#This Row],[План ДВН, чел.]]*100,1) -> 78.6
A139: Июль | B139: ДВН | C139: ЦРБ Боровского района | D139: 323 | E139: 499.69444 | F139: 245 | G139: =Таблица1[[#This Row],[Оплачено случаев]]-Таблица1[[#This Row],[План ДВН, чел.]] -> 78 | H139: =ROUND(Таблица1[[#This Row],[Оплачено случаев]]/Таблица1[[#This Row],[План ДВН, чел.]]*100,1) -> 131.8
A140: Июль | B140: ДВН | C140: ЦРБ Жуковского района | D140: 51 | E140: 54.213 | F140: 94 | G140: =Таблица1[[#This Row],[Оплачено случаев]]-Таблица1[[#This Row],[План ДВН, чел.]] -> -43 | H140: =ROUND(Таблица1[[#This Row],[Оплачено случаев]]/Таблица1[[#This Row],[План ДВН, чел.]]*100,1) -> 54.3
A141: Июль | B141: ДВН | C141: ГП "Город Кременки" | D141: 134 | E141: 154.59642 | F141: 16 | G141: =Таблица1[[#This Row],[Оплачено случаев]]-Таблица1[[#This Row],[План ДВН, чел.]] -> 118 | H141: =ROUND(Таблица1[[#This Row],[Оплачено случаев]]/Таблица1[[#This Row],[План ДВН, чел.]]*100,1) -> 837.5
A142: Июль | B142: ДВН | C142: ЦРБ Малоярославецкого района | D142: 502 | E142: 780.7343 | F142: 517 | G142: =Таблица1[[#This Row],[Оплачено случаев]]-Таблица1[[#This Row],[План ДВН, чел.]] -> -15 | H142: =ROUND(Таблица1[[#This Row],[Оплачено случаев]]/Таблица1[[#This Row],[План ДВН, чел.]]*100,1) -> 97.1
A143: Июль | B143: ДВН | C143: ЦРБ Тарусского района | D143: 49 | E143: 48.01307 | F143: 95 | G143: =Таблица1[[#This Row],[Оплачено случаев]]-Таблица1[[#This Row],[План ДВН, чел.]] -> -46 | H143: =ROUND(Таблица1[[#This Row],[Оплачено случаев]]/Таблица1[[#This Row],[План ДВН, чел.]]*100,1) -> 51.6
A144: Август | B144: ДВН | C144: ЦМБ № 1 | D144: =AS4 -> 195 | E144: =AT4 -> 216.59714 | F144: =AU4 -> 164 | G144: =Таблица1[[#This Row],[Оплачено случаев]]-Таблица1[[#This Row],[План ДВН, чел.]] -> 31 | H144: =ROUND(Таблица1[[#This Row],[Оплачено случаев]]/Таблица1[[#This Row],[План ДВН, чел.]]*100,1) -> 118.9
A145: Август | B145: ДВН | C145: ЦМБ № 2 | D145: 9 | E145: 9.4607 | F145: 135 | G145: =Таблица1[[#This Row],[Оплачено случаев]]-Таблица1[[#This Row],[План ДВН, чел.]] -> -126 | H145: =ROUND(Таблица1[[#This Row],[Оплачено случаев]]/Таблица1[[#This Row],[План ДВН, чел.]]*100,1) -> 6.7
A146: Август | B146: ДВН | C146: ЦМБ № 3 | D146: 28 | E146: 41.54323 | F146: 44 | G146: =Таблица1[[#This Row],[Оплачено случаев]]-Таблица1[[#This Row],[План ДВН, чел.]] -> -16 | H146: =ROUND(Таблица1[[#This Row],[Оплачено случаев]]/Таблица1[[#This Row],[План ДВН, чел.]]*100,1) -> 63.6
A147: Август | B147: ДВН | C147: ЦМБ № 4 | D147: 0 | E147: 0 | F147: 26 | G147: =Таблица1[[#This Row],[Оплачено случаев]]-Таблица1[[#This Row],[План ДВН, чел.]] -> -26 | H147: =ROUND(Таблица1[[#This Row],[Оплачено случаев]]/Таблица1[[#This Row],[План ДВН, чел.]]*100,1) -> 0
A148: Август | B148: ДВН | C148: ЦМБ № 5 | D148: 157 | E148: 146.92082 | F148: 136 | G148: =Таблица1[[#This Row],[Оплачено случаев]]-Таблица1[[#This Row],[План ДВН, чел.]] -> 21 | H148: =ROUND(Таблица1[[#This Row],[Оплачено случаев]]/Таблица1[[#This Row],[План ДВН, чел.]]*100,1) -> 115.4
A149: Август | B149: ДВН | C149: ЦМБ № 6 | D149: 284 | E149: 308.57885 | F149: 319 | G149: =Таблица1[[#This Row],[Оплачено случаев]]-Таблица1[[#This Row],[План ДВН, чел.]] -> -35 | H149: =ROUND(Таблица1[[#This Row],[Оплачено случаев]]/Таблица1[[#This Row],[План ДВН, чел.]]*100,1) -> 89
A150: Август | B150: ДВН | C150: КГБ № 5 | D150: 947 | E150: 1059.90183 | F150: 1163 | G150: =Таблица1[[#This Row],[Оплачено случаев]]-Таблица1[[#This Row],[План ДВН, чел.]] -> -216 | H150: =ROUND(Таблица1[[#This Row],[Оплачено случаев]]/Таблица1[[#This Row],[План ДВН, чел.]]*100,1) -> 81.4
A151: Август | B151: ДВН | C151: КГКБ № 4 | D151: 1383 | E151: 1302.77398 | F151: 679 | G151: =Таблица1[[#This Row],[Оплачено случаев]]-Таблица1[[#This Row],[План ДВН, чел.]] -> 704 | H151: =ROUND(Таблица1[[#This Row],[Оплачено случаев]]/Таблица1[[#This Row],[План ДВН, чел.]]*100,1) -> 203.7
A152: Август | B152: ДВН | C152: Городская поликлиника | D152: 480 | E152: 596.6299 | F152: 260 | G152: =Таблица1[[#This Row],[Оплачено случаев]]-Таблица1[[#This Row],[План ДВН, чел.]] -> 220 | H152: =ROUND(Таблица1[[#This Row],[Оплачено случаев]]/Таблица1[[#This Row],[План ДВН, чел.]]*100,1) -> 184.6
A153: Август | B153: ДВН | C153: МСЧ № 1 г. Калуги | D153: 2 | E153: 3.55121 | F153: 21 | G153: =Таблица1[[#This Row],[Оплачено случаев]]-Таблица1[[#This Row],[План ДВН, чел.]] -> -19 | H153: =ROUND(Таблица1[[#This Row],[Оплачено случаев]]/Таблица1[[#This Row],[План ДВН, чел.]]*100,1) -> 9.5
A154: Август | B154: ДВН | C154: МСЧ № 2 г. Калуги | D154: 0 | E154: 0 | F154: 26 | G154: =Таблица1[[#This Row],[Оплачено случаев]]-Таблица1[[#This Row],[План ДВН, чел.]] -> -26 | H154: =ROUND(Таблица1[[#This Row],[Оплачено случаев]]/Таблица1[[#This Row],[План ДВН, чел.]]*100,1) -> 0
A155: Август | B155: ДВН | C155: МСЧ МВД | D155: 0 | E155: 0 | F155: 0 | G155: =Таблица1[[#This Row],[Оплачено случаев]]-Таблица1[[#This Row],[План ДВН, чел.]] -> 0 | H155: =ROUND(Таблица1[[#This Row],[Оплачено случаев]]/Таблица1[[#This Row],[План ДВН, чел.]]*100,1) -> 
A156: Август | B156: ДВН | C156: ЧУЗ "Больница "РЖД - Медицина" | D156: 22 | E156: 27.20124 | F156: 57 | G156: =Таблица1[[#This Row],[Оплачено случаев]]-Таблица1[[#This Row],[План ДВН, чел.]] -> -35 | H156: =ROUND(Таблица1[[#This Row],[Оплачено случаев]]/Таблица1[[#This Row],[План ДВН, чел.]]*100,1) -> 38.6
A157: Август | B157: ДВН | C157: КБ № 8 ФМБА | D157: 551 | E157: 585.713 | F157: 350 | G157: =Таблица1[[#This Row],[Оплачено случаев]]-Таблица1[[#This Row],[План ДВН, чел.]] -> 201 | H157: =ROUND(Таблица1[[#This Row],[Оплачено случаев]]/Таблица1[[#This Row],[План ДВН, чел.]]*100,1) -> 157.4
A158: Август | B158: ДВН | C158: ЦРБ Бабынинского района | D158: 108 | E158: 182.87237 | F158: 224 | G158: =Таблица1[[#This Row],[Оплачено случаев]]-Таблица1[[#This Row],[План ДВН, чел.]] -> -116 | H158: =ROUND(Таблица1[[#This Row],[Оплачено случаев]]/Таблица1[[#This Row],[План ДВН, чел.]]*100,1) -> 48.2
A159: Август | B159: ДВН | C159: ЦРБ Боровского района | D159: 467 | E159: 661.78505 | F159: 245 | G159: =Таблица1[[#This Row],[Оплачено случаев]]-Таблица1[[#This Row],[План ДВН, чел.]] -> 222 | H159: =ROUND(Таблица1[[#This Row],[Оплачено случаев]]/Таблица1[[#This Row],[План ДВН, чел.]]*100,1) -> 190.6
A160: Август | B160: ДВН | C160: ЦРБ Жуковского района | D160: 50 | E160: 53.15 | F160: 94 | G160: =Таблица1[[#This Row],[Оплачено случаев]]-Таблица1[[#This Row],[План ДВН, чел.]] -> -44 | H160: =ROUND(Таблица1[[#This Row],[Оплачено случаев]]/Таблица1[[#This Row],[План ДВН, чел.]]*100,1) -> 53.2
A161: Август | B161: ДВН | C161: ГП "Город Кременки" | D161: 69 | E161: 80.65414 | F161: 16 | G161: =Таблица1[[#This Row],[Оплачено случаев]]-Таблица1[[#This Row],[План ДВН, чел.]] -> 53 | H161: =ROUND(Таблица1[[#This Row],[Оплачено случаев]]/Таблица1[[#This Row],[План ДВН, чел.]]*100,1) -> 431.3
A162: Август | B162: ДВН | C162: ЦРБ Малоярославецкого района | D162: 434 | E162: 626.83501 | F162: 517 | G162: =Таблица1[[#This Row],[Оплачено случаев]]-Таблица1[[#This Row],[План ДВН, чел.]] -> -83 | H162: =ROUND(Таблица1[[#This Row],[Оплачено случаев]]/Таблица1[[#This Row],[План ДВН, чел.]]*100,1) -> 83.9
A163: Август | B163: ДВН | C163: ЦРБ Тарусского района | D163: 198 | E163: 156.76954 | F163: 95 | G163: =Таблица1[[#This Row],[Оплачено случаев]]-Таблица1[[#This Row],[План ДВН, чел.]] -> 103 | H163: =ROUND(Таблица1[[#This Row],[Оплачено случаев]]/Таблица1[[#This Row],[План ДВН, чел.]]*100,1) -> 208.4
A164: Сентябрь | B164: ДВН | C164: ЦМБ № 1 | D164: =AX4 -> 343 | E164: =AY4 -> 386.59626 | F164: =AZ4 -> 164 | G164: =Таблица1[[#This Row],[Оплачено случаев]]-Таблица1[[#This Row],[План ДВН, чел.]] -> 179 | H164: =ROUND(Таблица1[[#This Row],[Оплачено случаев]]/Таблица1[[#This Row],[План ДВН, чел.]]*100,1) -> 209.1
A165: Сентябрь | B165: ДВН | C165: ЦМБ № 2 | D165: 26 | E165: 27.638 | F165: 135 | G165: =Таблица1[[#This Row],[Оплачено случаев]]-Таблица1[[#This Row],[План ДВН, чел.]] -> -109 | H165: =ROUND(Таблица1[[#This Row],[Оплачено случаев]]/Таблица1[[#This Row],[План ДВН, чел.]]*100,1) -> 19.3
A166: Сентябрь | B166: ДВН | C166: ЦМБ № 3 | D166: 20 | E166: 31.23841 | F166: 44 | G166: =Таблица1[[#This Row],[Оплачено случаев]]-Таблица1[[#This Row],[План ДВН, чел.]] -> -24 | H166: =ROUND(Таблица1[[#This Row],[Оплачено случаев]]/Таблица1[[#This Row],[План ДВН, чел.]]*100,1) -> 45.5
A167: Сентябрь | B167: ДВН | C167: ЦМБ № 4 | D167: 0 | E167: 0 | F167: 26 | G167: =Таблица1[[#This Row],[Оплачено случаев]]-Таблица1[[#This Row],[План ДВН, чел.]] -> -26 | H167: =ROUND(Таблица1[[#This Row],[Оплачено случаев]]/Таблица1[[#This Row],[План ДВН, чел.]]*100,1) -> 0
A168: Сентябрь | B168: ДВН | C168: ЦМБ № 5 | D168: 135 | E168: 143.41195 | F168: 136 | G168: =Таблица1[[#This Row],[Оплачено случаев]]-Таблица1[[#This Row],[План ДВН, чел.]] -> -1 | H168: =ROUND(Таблица1[[#This Row],[Оплачено случаев]]/Таблица1[[#This Row],[План ДВН, чел.]]*100,1) -> 99.3
A169: Сентябрь | B169: ДВН | C169: ЦМБ № 6 | D169: 484 | E169: 672.12224 | F169: 319 | G169: =Таблица1[[#This Row],[Оплачено случаев]]-Таблица1[[#This Row],[План ДВН, чел.]] -> 165 | H169: =ROUND(Таблица1[[#This Row],[Оплачено случаев]]/Таблица1[[#This Row],[План ДВН, чел.]]*100,1) -> 151.7
A170: Сентябрь | B170: ДВН | C170: КГБ № 5 | D170: 7606 | E170: 15003.3192 | F170: 1163 | G170: =Таблица1[[#This Row],[Оплачено случаев]]-Таблица1[[#This Row],[План ДВН, чел.]] -> 6443 | H170: =ROUND(Таблица1[[#This Row],[Оплачено случаев]]/Таблица1[[#This Row],[План ДВН, чел.]]*100,1) -> 654
A171: Сентябрь | B171: ДВН | C171: КГКБ № 4 | D171: 1842 | E171: 1680.70495 | F171: 679 | G171: =Таблица1[[#This Row],[Оплачено случаев]]-Таблица1[[#This Row],[План ДВН, чел.]] -> 1163 | H171: =ROUND(Таблица1[[#This Row],[Оплачено случаев]]/Таблица1[[#This Row],[План ДВН, чел.]]*100,1) -> 271.3
A172: Сентябрь | B172: ДВН | C172: Городская поликлиника | D172: 653 | E172: 810.70943 | F172: 260 | G172: =Таблица1[[#This Row],[Оплачено случаев]]-Таблица1[[#This Row],[План ДВН, чел.]] -> 393 | H172: =ROUND(Таблица1[[#This Row],[Оплачено случаев]]/Таблица1[[#This Row],[План ДВН, чел.]]*100,1) -> 251.2
A173: Сентябрь | B173: ДВН | C173: МСЧ № 1 г. Калуги | D173: 12 | E173: 22.92665 | F173: 21 | G173: =Таблица1[[#This Row],[Оплачено случаев]]-Таблица1[[#This Row],[План ДВН, чел.]] -> -9 | H173: =ROUND(Таблица1[[#This Row],[Оплачено случаев]]/Таблица1[[#This Row],[План ДВН, чел.]]*100,1) -> 57.1
A174: Сентябрь | B174: ДВН | C174: МСЧ № 2 г. Калуги | D174: 0 | E174: 0 | F174: 26 | G174: =Таблица1[[#This Row],[Оплачено случаев]]-Таблица1[[#This Row],[План ДВН, чел.]] -> -26 | H174: =ROUND(Таблица1[[#This Row],[Оплачено случаев]]/Таблица1[[#This Row],[План ДВН, чел.]]*100,1) -> 0
A175: Сентябрь | B175: ДВН | C175: МСЧ МВД | D175: 0 | E175: 0 | F175: 0 | G175: =Таблица1[[#This Row],[Оплачено случаев]]-Таблица1[[#This Row],[План ДВН, чел.]] -> 0 | H175: =ROUND(Таблица1[[#This Row],[Оплачено случаев]]/Таблица1[[#This Row],[План ДВН, чел.]]*100,1) -> 
A176: Сентябрь | B176: ДВН | C176: ЧУЗ "Больница "РЖД - Медицина" | D176: 29 | E176: 52.63285 | F176: 57 | G176: =Таблица1[[#This Row],[Оплачено случаев]]-Таблица1[[#This Row],[План ДВН, чел.]] -> -28 | H176: =ROUND(Таблица1[[#This Row],[Оплачено случаев]]/Таблица1[[#This Row],[План ДВН, чел.]]*100,1) -> 50.9
A177: Сентябрь | B177: ДВН | C177: КБ № 8 ФМБА | D177: 620 | E177: 917.6451 | F177: 350 | G177: =Таблица1[[#This Row],[Оплачено случаев]]-Таблица1[[#This Row],[План ДВН, чел.]] -> 270 | H177: =ROUND(Таблица1[[#This Row],[Оплачено случаев]]/Таблица1[[#This Row],[План ДВН, чел.]]*100,1) -> 177.1
A178: Сентябрь | B178: ДВН | C178: ЦРБ Бабынинского района | D178: 489 | E178: 864.37099 | F178: 224 | G178: =Таблица1[[#This Row],[Оплачено случаев]]-Таблица1[[#This Row],[План ДВН, чел.]] -> 265 | H178: =ROUND(Таблица1[[#This Row],[Оплачено случаев]]/Таблица1[[#This Row],[План ДВН, чел.]]*100,1) -> 218.3
A179: Сентябрь | B179: ДВН | C179: ЦРБ Боровского района | D179: 341 | E179: 479.97618 | F179: 245 | G179: =Таблица1[[#This Row],[Оплачено случаев]]-Таблица1[[#This Row],[План ДВН, чел.]] -> 96 | H179: =ROUND(Таблица1[[#This Row],[Оплачено случаев]]/Таблица1[[#This Row],[План ДВН, чел.]]*100,1) -> 139.2
A180: Сентябрь | B180: ДВН | C180: ЦРБ Жуковского района | D180: 23 | E180: 24.449 | F180: 94 | G180: =Таблица1[[#This Row],[Оплачено случаев]]-Таблица1[[#This Row],[План ДВН, чел.]] -> -71 | H180: =ROUND(Таблица1[[#This Row],[Оплачено случаев]]/Таблица1[[#This Row],[План ДВН, чел.]]*100,1) -> 24.5
A181: Сентябрь | B181: ДВН | C181: ГП "Город Кременки" | D181: 91 | E181: 104.92105 | F181: 16 | G181: =Таблица1[[#This Row],[Оплачено случаев]]-Таблица1[[#This Row],[План ДВН, чел.]] -> 75 | H181: =ROUND(Таблица1[[#This Row],[Оплачено случаев]]/Таблица1[[#This Row],[План ДВН, чел.]]*100,1) -> 568.8
A182: Сентябрь | B182: ДВН | C182: ЦРБ Малоярославецкого района | D182: 511 | E182: 762.73687 | F182: 517 | G182: =Таблица1[[#This Row],[Оплачено случаев]]-Таблица1[[#This Row],[План ДВН, чел.]] -> -6 | H182: =ROUND(Таблица1[[#This Row],[Оплачено случаев]]/Таблица1[[#This Row],[План ДВН, чел.]]*100,1) -> 98.8
A183: Сентябрь | B183: ДВН | C183: ЦРБ Тарусского района | D183: 145 | E183: 119.90971 | F183: 95 | G183: =Таблица1[[#This Row],[Оплачено случаев]]-Таблица1[[#This Row],[План ДВН, чел.]] -> 50 | H183: =ROUND(Таблица1[[#This Row],[Оплачено случаев]]/Таблица1[[#This Row],[План ДВН, чел.]]*100,1) -> 152.6
A184: Октябрь | B184: ДВН | C184: ЦМБ № 1 | D184: =BC4 -> 367 | E184: =BD4 -> 541.41781 | F184: =BE4 -> 164 | G184: =Таблица1[[#This Row],[Оплачено случаев]]-Таблица1[[#This Row],[План ДВН, чел.]] -> 203 | H184: =ROUND(Таблица1[[#This Row],[Оплачено случаев]]/Таблица1[[#This Row],[План ДВН, чел.]]*100,1) -> 223.8
A185: Октябрь | B185: ДВН | C185: ЦМБ № 2 | D185: 288 | E185: 300.65152 | F185: 135 | G185: =Таблица1[[#This Row],[Оплачено случаев]]-Таблица1[[#This Row],[План ДВН, чел.]] -> 153 | H185: =ROUND(Таблица1[[#This Row],[Оплачено случаев]]/Таблица1[[#This Row],[План ДВН, чел.]]*100,1) -> 213.3
A186: Октябрь | B186: ДВН | C186: ЦМБ № 3 | D186: 17 | E186: 41.28289 | F186: 44 | G186: =Таблица1[[#This Row],[Оплачено случаев]]-Таблица1[[#This Row],[План ДВН, чел.]] -> -27 | H186: =ROUND(Таблица1[[#This Row],[Оплачено случаев]]/Таблица1[[#This Row],[План ДВН, чел.]]*100,1) -> 38.6
A187: Октябрь | B187: ДВН | C187: ЦМБ № 4 | D187: 0 | E187: 0 | F187: 26 | G187: =Таблица1[[#This Row],[Оплачено случаев]]-Таблица1[[#This Row],[План ДВН, чел.]] -> -26 | H187: =ROUND(Таблица1[[#This Row],[Оплачено случаев]]/Таблица1[[#This Row],[План ДВН, чел.]]*100,1) -> 0
A188: Октябрь | B188: ДВН | C188: ЦМБ № 5 | D188: 299 | E188: 416.95413 | F188: 136 | G188: =Таблица1[[#This Row],[Оплачено случаев]]-Таблица1[[#This Row],[План ДВН, чел.]] -> 163 | H188: =ROUND(Таблица1[[#This Row],[Оплачено случаев]]/Таблица1[[#This Row],[План ДВН, чел.]]*100,1) -> 219.9
A189: Октябрь | B189: ДВН | C189: ЦМБ № 6 | D189: 704 | E189: 999.72188 | F189: 319 | G189: =Таблица1[[#This Row],[Оплачено случаев]]-Таблица1[[#This Row],[План ДВН, чел.]] -> 385 | H189: =ROUND(Таблица1[[#This Row],[Оплачено случаев]]/Таблица1[[#This Row],[План ДВН, чел.]]*100,1) -> 220.7
A190: Октябрь | B190: ДВН | C190: КГБ № 5 | D190: 141 | E190: 149.883 | F190: 1163 | G190: =Таблица1[[#This Row],[Оплачено случаев]]-Таблица1[[#This Row],[План ДВН, чел.]] -> -1022 | H190: =ROUND(Таблица1[[#This Row],[Оплачено случаев]]/Таблица1[[#This Row],[План ДВН, чел.]]*100,1) -> 12.1
A191: Октябрь | B191: ДВН | C191: КГКБ № 4 | D191: 1779 | E191: 1627.29021 | F191: 679 | G191: =Таблица1[[#This Row],[Оплачено случаев]]-Таблица1[[#This Row],[План ДВН, чел.]] -> 1100 | H191: =ROUND(Таблица1[[#This Row],[Оплачено случаев]]/Таблица1[[#This Row],[План ДВН, чел.]]*100,1) -> 262
A192: Октябрь | B192: ДВН | C192: Городская поликлиника | D192: 975 | E192: 1209.7295 | F192: 260 | G192: =Таблица1[[#This Row],[Оплачено случаев]]-Таблица1[[#This Row],[План ДВН, чел.]] -> 715 | H192: =ROUND(Таблица1[[#This Row],[Оплачено случаев]]/Таблица1[[#This Row],[План ДВН, чел.]]*100,1) -> 375
A193: Октябрь | B193: ДВН | C193: МСЧ № 1 г. Калуги | D193: 3 | E193: 3.189 | F193: 21 | G193: =Таблица1[[#This Row],[Оплачено случаев]]-Таблица1[[#This Row],[План ДВН, чел.]] -> -18 | H193: =ROUND(Таблица1[[#This Row],[Оплачено случаев]]/Таблица1[[#This Row],[План ДВН, чел.]]*100,1) -> 14.3
A194: Октябрь | B194: ДВН | C194: МСЧ № 2 г. Калуги | D194: 0 | E194: 0 | F194: 26 | G194: =Таблица1[[#This Row],[Оплачено случаев]]-Таблица1[[#This Row],[План ДВН, чел.]] -> -26 | H194: =ROUND(Таблица1[[#This Row],[Оплачено случаев]]/Таблица1[[#This Row],[План ДВН, чел.]]*100,1) -> 0
A195: Октябрь | B195: ДВН | C195: МСЧ МВД | D195: 0 | E195: 0 | F195: 0 | G195: =Таблица1[[#This Row],[Оплачено случаев]]-Таблица1[[#This Row],[План ДВН, чел.]] -> 0 | H195: =ROUND(Таблица1[[#This Row],[Оплачено случаев]]/Таблица1[[#This Row],[План ДВН, чел.]]*100,1) -> 
A196: Октябрь | B196: ДВН | C196: ЧУЗ "Больница "РЖД - Медицина" | D196: 4 | E196: 6.10054 | F196: 57 | G196: =Таблица1[[#This Row],[Оплачено случаев]]-Таблица1[[#This Row],[План ДВН, чел.]] -> -53 | H196: =ROUND(Таблица1[[#This Row],[Оплачено случаев]]/Таблица1[[#This Row],[План ДВН, чел.]]*100,1) -> 7
A197: Октябрь | B197: ДВН | C197: КБ № 8 ФМБА | D197: 428 | E197: 588.13029 | F197: 350 | G197: =Таблица1[[#This Row],[Оплачено случаев]]-Таблица1[[#This Row],[План ДВН, чел.]] -> 78 | H197: =ROUND(Таблица1[[#This Row],[Оплачено случаев]]/Таблица1[[#This Row],[План ДВН, чел.]]*100,1) -> 122.3
A198: Октябрь | B198: ДВН | C198: ЦРБ Бабынинского района | D198: 505 | E198: 878.81436 | F198: 224 | G198: =Таблица1[[#This Row],[Оплачено случаев]]-Таблица1[[#This Row],[План ДВН, чел.]] -> 281 | H198: =ROUND(Таблица1[[#This Row],[Оплачено случаев]]/Таблица1[[#This Row],[План ДВН, чел.]]*100,1) -> 225.4
A199: Октябрь | B199: ДВН | C199: ЦРБ Боровского района | D199: 312 | E199: 502.95139 | F199: 245 | G199: =Таблица1[[#This Row],[Оплачено случаев]]-Таблица1[[#This Row],[План ДВН, чел.]] -> 67 | H199: =ROUND(Таблица1[[#This Row],[Оплачено случаев]]/Таблица1[[#This Row],[План ДВН, чел.]]*100,1) -> 127.3
A200: Октябрь | B200: ДВН | C200: ЦРБ Жуковского района | D200: 984 | E200: 886.42599 | F200: 94 | G200: =Таблица1[[#This Row],[Оплачено случаев]]-Таблица1[[#This Row],[План ДВН, чел.]] -> 890 | H200: =ROUND(Таблица1[[#This Row],[Оплачено случаев]]/Таблица1[[#This Row],[План ДВН, чел.]]*100,1) -> 1046.8
... 43 more rows

Sheet Все МО (hidden)
A1: Месяц | B1: Декабрь
A3: Названия строк | B3: Оплачено случаев | C3: План ДВН, чел.
A4: МСЧ МВД | B4: 0 | C4: 0
A5: ЦМБ № 4 | B5: 0 | C5: 25
A6: МСЧ № 2 г. Калуги | B6: 5 | C6: 29
A7: ЦМБ № 3 | B7: 16 | C7: 47
A8: ЧУЗ "Больница "РЖД - Медицина" | B8: 37 | C8: 51
A9: МСЧ № 1 г. Калуги | B9: 61 | C9: 21
A10: ЦРБ Тарусского района | B10: 65 | C10: 96
A11: ГП "Город Кременки" | B11: 110 | C11: 14
A12: ЦМБ № 5 | B12: 213 | C12: 137
A13: ЦМБ № 6 | B13: 223 | C13: 316
A14: ЦРБ Малоярославецкого района | B14: 224 | C14: 521
A15: ЦМБ № 2 | B15: 314 | C15: 139
A16: ЦМБ № 1 | B16: 456 | C16: 161
A17: ЦРБ Бабынинского района | B17: 508 | C17: 219
A18: КГКБ № 4 | B18: 546 | C18: 683
A19: ЦРБ Боровского района | B19: 565 | C19: 241
A20: Городская поликлиника | B20: 574 | C20: 262
A21: ЦРБ Жуковского района | B21: 616 | C21: 91
A22: КБ № 8 ФМБА | B22: 672 | C22: 353
A23: КГБ № 5 | B23: 1590 | C23: 1168
A24: Общий итог | B24: 6795 | C24: 4574

Sheet 10 лучших (hidden)
A1: Месяц | B1: Декабрь
A3: Названия строк | B3: % выполнения
A4: ЦМБ № 5 | B4: 155.5
A5: КБ № 8 ФМБА | B5: 190.4
A6: Городская поликлиника | B6: 219.1
A7: ЦМБ № 2 | B7: 225.9
A8: ЦРБ Бабынинского района | B8: 232
A9: ЦРБ Боровского района | B9: 234.4
A10: ЦМБ № 1 | B10: 283.2
A11: МСЧ № 1 г. Калуги | B11: 290.5
A12: ЦРБ Жуковского района | B12: 676.9
A13: ГП "Город Кременки" | B13: 785.7
A14: Общий итог | B14: 329.36

Sheet 10 худших (hidden)
A1: Месяц | B1: Декабрь
A3: Названия строк | B3: % выполнения
A4: ЦМБ № 4 | B4: 0
A5: МСЧ № 2 г. Калуги | B5: 17.2
A6: ЦМБ № 3 | B6: 34
A7: ЦРБ Малоярославецкого района | B7: 43
A8: ЦРБ Тарусского района | B8: 67.7
A9: ЦМБ № 6 | B9: 70.6
A10: ЧУЗ "Больница "РЖД - Медицина" | B10: 72.5
A11: КГКБ № 4 | B11: 79.9
A12: КГБ № 5 | B12: 136.1
A13: ЦМБ № 5 | B13: 155.5
A14: Общий итог | B14: 67.65

Sheet Помесячно по МО (hidden)
A1: Выполнение ДВН
A3: Названия строк | B3: Оплачено случаев | C3: План ДВН, чел. | D3: Отклонение
A4: Январь | B4: 228 | C4: 260 | D4: -32
A5: Февраль | B5: 296 | C5: 260 | D5: 36
A6: Март | B6: 248 | C6: 260 | D6: -12
A7: Апрель | B7: 205 | C7: 260 | D7: -55
A8: Май | B8: 139 | C8: 260 | D8: -121
A9: Июнь | B9: 63 | C9: 260 | D9: -197
A10: Июль | B10: 95 | C10: 260 | D10: -165
A11: Август | B11: 480 | C11: 260 | D11: 220
A12: Сентябрь | B12: 653 | C12: 260 | D12: 393
A13: Октябрь | B13: 975 | C13: 260 | D13: 715
A14: Ноябрь | B14: 788 | C14: 260 | D14: 528
A15: Декабрь | B15: 574 | C15: 262 | D15: 312
A16: Общий итог | B16: 4744 | C16: 3122 | D16: 1622

Sheet Дашборд ДВН
A2: ДИСПАНСЕРНОЕ НАБЛЮДЕНИЕ ВЗРОСЛОГО НАСЕЛЕНИЯ В 2023 ГОДУ
